Workbook

Sheet AJ
A1: (FÉRIAS JANEIRO 2014) - ATUALIZADO 03/2014 - V14 (19/03/2013)
A6: AJUDA AO PROGRAMA CÁLCULO DE FÉRIAS
B8: Todas as planilhas deste programa, estão protegidas com senha de segurança (proteção dos cálculos) -Você não precisa de senha. A senha é uma segurança para não eliminar as formulas de cálculos existentes nas planilhas
B10: Para usar o programa, utilize sempre a tecla "TAB" -'ENTER" e "SETA" do seu teclado, pois como os programas estão com trava de segurança, devido aos cálculos, esta tecla irá conduzir você somente pelas células que realmente necessitam de manutenção....
B12: Isso facilita você:- quando você estiver na planilha, clique na linha 1 e na célula A e daí em diante só teclar 'TAB"
B13: Dê manutenção nas planilhas seguindo a seqüência da régua....... Ex:- (TAB), depois (DADOS) em seguida (RECIBO).
B15: Para limpar coluna com VALORES ou QUANTIDADE, use sempre a tecla (ZERO) ou (DELETE) e nunca (BARRA DE ESPAÇO).
B16: Para limpar coluna com NOME ou DATA, use a tecla "BARRA DE ESPAÇO" e nunca a tecla (ZERO);
B17: FORMATO DE DATA:- DD/MM/AAAA
A18: Versão 8.0 - CÁLCULO FÉRIAS DE ACORDO COM N° DE FALTAS
B19: "AJ" (AJUDA) - Facilita o entendimento do usuário após leitura
B20: "TB" (TABELA) - Tabela de desconto de INSS e IRRF - dê manutenção sempre que tiver alteração
B21: "FUNC" (cad. de funcionários)- Você deverá cadastrar nesta planilha os dados dos trabalhadores. Obs :-Proibido ao usuário inserir linhas ou colunas na planilha.
B22: "EMP" (cadastro da empresa) - Você deverá cadastrar nesta planilha os dados das empresas. Obs:- Proibido ao usuários inserir linhas ou colunas nesta planilha.
B23: "DADOS" (dados para cálculodas férias, você determinará qual a empresa e qual o funcionário, que terá direito a férias - ganhou nova cara na versão 8.0 - agora na versão 8.1 - foi acrescentado as médias das variáveis.(comissões, horas-extras e adicionais).
B25: "AV" (Aviso de férias) - Pronto automático, só imprimir. (alimentada pela planilha dados)
B26: "AB" - (solicitação abono pecuniário) - Pronto automático, só imprimir. (alimentada pela planilha dados) - novidade da versão 8.1 - caso não informe este direito na planilha de dados, não será preenchido recibo de solicitação do abono pecuniário
B28: "13°sal" - (solicitação 13° salário junto com as férias) - Pronto automático, só imprimir.(alimentada pela planilha dados)
B30: "RECIBO" (Recibo de Férias) - quando você preenche a planilha dados ela automaticamente alimenta o preenchimento automático do recibo de férias do trabalhador.
B33: Versão 8.1 - Contagem da idade do funcionário automática - Planilha FUNC - colocado botão automático para localizar, UF - ESTADO CIVIL - DESCANSO SEMANAL - SEXO - N° DE FILHOS PARA SALÁRIO-FAMÍLIA - N° DE FILHO PARA IMPOSTO DE RENDA. digite o n° do CPF e PIS/PASEP sem ponto ou virgula, pois o sistema colocará a separação automaticamente - Planilha EMP - colocado botão automático para localizar UF
B36: Quando funcionário completar 65 anos de idade, ele tem direito a dedução do limite de isenção na base de cálculo de seu imposto de renda, assim está versão já está adaptada para fazer o dedução automática na base de cálculo do imposto de renda deste trabalhador.
B37: Versão 8.2 - 1)-Corrigido nesta versão a idade do funcionário, pois ainda estava com erro na versão anterior. Planilha DADOS - 2)- Implantado no sistema de alerta para férias em dobro. 3)- Corrigido nesta versão, quando o vencimento do período aquisitivo se dá em ano bissexto o sistema dava o último dia do período aquisitivo errado. Planilha FUNC e EMP. 4)- Foi implementado icone para Classificação por ordem alfabética. Planilha DADOS. 5)- Foi implementado icone para limpeza automática dos itens digitados.
B39: Versão 8.2.0 - Obrigado Sr. Antonio Romoaldo Alves Lima, da cidade de João Pessoa-PB , foi o responsável pela localizado do erro na Planilha EMPR, no campo CNPJ quando o n° começa por Zero, o programa não aceitava que o usuário digita-se , dava a mensagem de excesso de letras dentro do texto.(26/09/2007)
B41: Versão 08.E04.T00 - Atualizada em 02/01/2009 - Atualização da tabela do imposto de renda
B42: Versão 08.E04.T01 - Atualizada em 13/02/2009 - Atualização da tabela do INSS
B43: Versão 08.E05.T02 - Atualizada em 01/01/2010 - Atualização tabela do INSS/IRRF, nesta versão elaborei uma planilha chamada demonstrativo, a mesma separa os cálculos de acordo com o mês de competência, o objetivo é facilitar a elaboração da folha de pagamento.
B44: Versão 08.E05.T03 - Atualizada em 01/07/2010 - Atualização tabela do INSS.
B45: Versão 08.E06.T03 - Atualizada em 13/10/2010 - Regularização do desconto do IRRF faixa de 22,50%. Agradeço ao Sr. JOÃO BOSCO GOMES LOPES - Patos - PB, que descobriu que o programa não estava calculando corretamente o desconto. Ajuda como está é sempre bem vinda, pois sou sozinho para desenvolver e conferir os programas.
B46: Versão 08.E06.T04 - Atualizada em 01/01/2011 - Atualização tabela do INSS.
B47: Versão 08.E07.T03 - Atualizada em 17/02/2011 - Agradeço ao Sr. ANTONIO DE SOUZA RAMOS / CILASI ALIMENTOS S/A, descobriu uma falha no programa de cálculo, não estava descontando corretamente o IRRF. Antecipo meus agradecimentos pela grande ajuda..
B48: Versão 9.E0.T0 - Atualizada em 01/06/2011 - Na planilha TB, foi criada a opção para descontar o valor da pensão alimenticia no Recibo de férias. Na planilha DADOS, fiz um bloqueio de alguns descontos obrigatórios, portanto não tem condições de ser excluido pelo usuário, por desconhecimento da legislação. Planilha RECIBO, foi criado outras linhas para os vencimentos e descontos. Planilha DEMONSTRATIVO apresentava erro de falso, foi corrigido nesta versão. A pedido dos usuários foi também separado no recibo e no demonstrativo de férias a parte fixa cálculada separadamente da parte variável.
B49: FÉRIAS JANEIRO 2012 - Atualizada em 01/01/2012 - Atualização da nova tabela do Imposto de Renda Retido na Fonte .
B50: FÉRIAS JANEIRO 2012 - Atualizada em 06/01/2012 - Atualização da nova tabela do desconto do INSS .
B51: FÉRIAS JANEIRO 2013 - Atualizada em 01/01/2013 -V10 Atualização da nova tabela do desconto do INSS .
B52: FÉRIAS JANEIRO 2013 - Atualizada em 28/10/2013 -V11 -
B53: Implantado planilhas hollerith (1) e hollerith (2), o sistema agora calcula as férias e os salários.
B54: FÉRIAS JANEIRO 2014 - Atualizada em 01/2014 -V12 -
B55: FÉRIAS JANEIRO 2014 - Atualizada em 02/2014 -V13 - (06/02/2014) - Planilha DADOS - correção no período aquisitivo nos anos bissexto - Planilha Hollerith 1 e 2 - nº de dependente do salário familia agora é automático.
B56: FÉRIAS JANEIRO 2014 - Atualizada em 03/2014 -V14 - (19/03/2014) - implantado valor por extenso automático nas planilhas RECIBO , HOLLERITH (1) e HOLLERITH (2) -OBS:- para o funcionamento perfeito "HABILITE OS MACROS" sempre que entrar no programa de férias.
B57: Caso a nova versão apresente algum erro, favor comunicar. Agradeço sua colaboração.
B58: ANGELO ADALBERTO TONON
B59: PEDAGOGO - TÉCNICO EM CONTABILIDADE - TÉCNICO EM SEG. NO TRABALHO
B60: PRES.PRUDENTE/SP
B61: angelo.tonon@ig.com.br
B63: Você está utilizando algum programa?
B64: Passe seu e-mail, informando qual programa que utiliza!
B65: Você será cadastrado como usuário, e passará a receber todas as atualizações efetuadas no programa.
B66: Você quer ajudar? É só mandar sua sugestão.

Sheet TB
A1: 0 | B1: Células na cor verde:- bloqueadas - células na cor branca:- liberada para manutenção
K3: 1
B6: MÊS DE COMPETÊNCIA
B7: TABELA A SER UTILIZADA NO MÊS DE | G7: =E6 -> 0
B8: TABELA DESCONTO DO INSS
B9: SALÁRIO DE CONTRIBUIÇÃO | F9: ALÍQUOTA
B10: DE | C10: 0 | D10: ATÉ | E10: 1317.07 | F10: 0.08
B11: DE | C11: =E10+0.01 -> 1317.08 | D11: ATÉ | E11: 2195.12 | F11: 0.09
B12: DE | C12: =E11 -> 2195.12 | D12: ATÉ | E12: =E11 -> 2195.12 | F12: =F11 -> 0.09
B13: DE | C13: =E12+0.01 -> 2195.13 | D13: ATÉ | E13: 4390.24 | F13: 0.11
B14: DE | C14: =C13 -> 2195.13 | D14: ATÉ | E14: =E13 -> 4390.24 | F14: =F13 -> 0.11
B17: Plano de Saúde (deduzir da base de cálculo do IRRF) | G17: 0
B18: Pensão Alimentícia (deduzir da base de cálculo do IRRF) | G18: 0
K19: 1
G22: =G7 -> 0
B23: TABELA PARA DESCONTO IMPOSTO RENDA
B24: DE | C24: 0 | D24: ATÉ | E24: 1787.77 | F24: 0 | G24: 0 | H24: ISENTO
B25: DE | C25: =E24+0.01 -> 1787.78 | D25: ATÉ | E25: 2679.29 | F25: 0.075 | G25: =E24*F25 -> 134.08
B26: DE | C26: =E25+0.01 -> 2679.3 | D26: ATÉ | E26: 3572.43 | F26: 0.15 | G26: =E25*(F26-F25)+G25 -> 335.03
B27: DE | C27: =E26+0.01 -> 3572.44 | D27: ATÉ | E27: 4463.81 | F27: 0.225 | G27: =E26*(F27-F26)+G26 -> 602.96
B28: DE | C28: =E27+0.01 -> 4463.82 | D28: ATÉ | E28: 1e+13 | F28: 0.275 | G28: =E27*(F28-F27)+G27 -> 826.15
B29: Valor de cada dependente p/ fins de dedução do imposto de renda | G29: 179.71
B30: IRRF FÉRIAS (LIMITE DE ISENÇÃO DO DESCONTO) | G30: 10
B31: Funcionário com 65 anos de idade (dedução permitida no Imposto de Renda) | G31: =IF(DADOS!M8<65,0,IF(DADOS!M8>=65,TB!E24)) -> 1787.77
B32: Valor lançado nesta coluna, será deduzido da base de cálculo do imposto de renda | G32: 0
B33: INFORME O Nº DE DIAS PARA DIVIDIR SUAS FÉRIAS | F33: 30
B34: =AJ!A1 -> (FÉRIAS JANEIRO 2014) - ATUALIZADO 03/2014 - V14 (19/03/2013)

Sheet FUNC
A1: 1 | B1: 2 | C1: 3 | D1: 4 | E1: 5 | F1: 6 | H1: 7 | I1: 8 | J1: 9 | K1: 10 | L1: 11 | M1: 12 | N1: 13 | O1: 14 | P1: 15 | Q1: 16 | R1: 17 | S1: 18 | T1: 19 | U1: 20 | V1: 21 | W1: 22 | X1: 23 | Y1: 24 | Z1: 25 | AA1: 26 | AB1: 27 | AC1: 28 | AD1: 29 | AE1: 30 | AF1: 31 | AG1: 32 | AH1: 33 | AI1: 34 | AJ1: 35 | AK1: 36 | AL1: 37 | AM1: 38 | AN1: 39 | AO1: 40 | AP1: 41 | AQ1: 42 | AR1: 43 | AS1: 44 | AT1: 45 | AU1: 46 | AV1: 47 | AW1: 48 | AX1: 49 | AY1: 50 | AZ1: 51 | BA1: 52 | BB1: 53 | BC1: 54 | BD1: 55 | BE1: 56 | BF1: 57 | BG1: 58 | BH1: 59 | BI1: 60 | BJ1: 61 | BK1: 62 | BL1: 63 | BM1: 64 | BN1: 65 | BO1: 66 | BP1: 67 | BQ1: 68 | BR1: 69 | BS1: 70 | BT1: 71 | BU1: 72 | BV1: 73 | BW1: 74 | BX1: 75 | BY1: 76 | BZ1: 77 | CA1: 78 | CB1: 79 | CC1: 81 | CD1: 82 | CE1: 83 | CF1: 84 | CG1: 84 | CH1: 85 | CI1: 86 | CJ1: 87 | CK1: 88 | CL1: 89 | CM1: 90 | CN1: 91 | CO1: 92 | CP1: 93 | CQ1: 94 | CR1: 95 | CS1: 96 | CT1: 97 | CU1: 98 | CV1: 99 | CW1: 100 | CX1: 101 | CY1: 102 | CZ1: 103 | DA1: 104 | DB1: 105 | DC1: 106 | DD1: 107 | DE1: 108 | DF1: 109 | DG1: 110 | DH1: 111 | DI1: 112 | DJ1: 113 | DK1: 114 | DL1: 115 | DM1: 116 | DN1: 117 | DO1: 118 | DP1: 119 | DQ1: 120 | DR1: 121 | DS1: 122 | DT1: 123 | DU1: 124 | DV1: 125 | DW1: 126 | DX1: 127 | DY1: 128 | DZ1: 129 | EA1: 130 | EB1: 131 | EC1: 132 | ED1: 133 | EE1: 134 | EF1: 135 | EG1: 136 | EH1: 137 | EI1: 138 | EJ1: 139 | EK1: 140 | EL1: 141 | EM1: 142 | EN1: 143 | EO1: 144 | EP1: 145 | EQ1: 146 | ER1: 147 | ES1: 148 | ET1: 149 | EU1: 150 | EV1: 151 | EW1: 152 | EX1: 153 | EY1: 154 | EZ1: 155 | FA1: 156 | FB1: 157 | FC1: 158
CQ2: HORÁRIO DE TRABALHO
A3: 0 | B3: NOME DO FUNCIONÁRIO | C3: EMPRESA | D3: Nº SAL.FA-MÍLIA | E3: Nº IRRF | F3: DATA DO NASCIMENTO | G3: IDADE | H3: LOCAL DO NASCIMENTO | I3: ESTADO | J3: UF | K3: NACIONALIDADE | L3: SEXO | M3: ESTADO CIVIL | N3: CÔR: | O3: ALTURA: | P3: PESO: | Q3: CABELOS: | R3: OLHOS: | S3: SINAIS: | T3: TIPO DE SANGUE | U3: DOADOR DE SANGUE | V3: GRAU DE INSTRUÇÃO | W3: CERTIDÃO DE NASCIMENTO N° | X3: LIVRO N° | Y3: FOLHA N° | Z3: LAVRADO NO CARTÓRIO DE | AA3: DATA DE EMISSÃO DA CERTIDÃO | AB3: CERTIDÃO DE CASAMENTO N° | AC3: LIVRO N° | AD3: FOLHA N° | AE3: LAVRADO NO CARTÓRIO DE | AF3: DATA DE EMISSÃO DA CERTIDÃO | AG3: NOME DO PAI | AH3: NACIONALIDADE DO PAI | AI3: NOME DA MÃE | AJ3: NACIONALIDADE DA MÃE | AK3: CARTEIRA DE IDENTIDADE | AL3: EXPEDIDA POR | AM3: DATA DA EMISSÃO | AN3: Nº DA CARTEIRA DE TRABALHO | AO3: SÉRIE/UF | AP3: EXPEDIDA PELA DRT DE | AQ3: EXPEDIDA EM: | AR3: CARTEIRA RESERVISTA: | AS3: CATEGORIA: | AT3: SÉRIE | AU3: EXPEDIDA POR | AV3: DATA DA EMISSÃO | AW3: CPF: | AX3: DATA DA EMISSÃO | AY3: TITULO DE ELEITOR | AZ3: ZONA | BA3: SEÇÃO | BB3: EXPEDIDA PELO JUIZO ELEITORAL DE | BC3: DATA DA EMISSÃO | BD3: CADASTRO PIS/PASEP EM | BE3: Nº: DO PIS/PASEP | BF3: BANCO | BG3: ENDEREÇO | BH3: CÓDIGO DO BANCO | BI3: CÓDIGO AGÊNCIA | BJ3: ENDEREÇO DO FUNCIONÁRIO | BK3: N° | BL3: COMPLEMENTO | BM3: BAIRRO | BN3: CEP | BO3: CIDADE | BP3: ESTADO | BQ3: UF | BR3: FONE RESIDÊNCIA | BS3: FONE FAX | BT3: CELULAR | BU3: E-MAIL PARTICULAR | BV3: CARTEIRA DE SAÚDE | BW3: QUANDO ESTRANGEIRO-DATA CHEGADA | BX3: CARTEIRA MODELO 19 | BY3: Nº REGISTRO GERAL: | BZ3: É CASADO COM BRASILEIRA(O)?: | CA3: NOME DO CONJUGE: | CB3: É NATURALIZADO: | CC3: TEM FILHOS BRASILEIROS? | CD3: QUANTOS? | CE3: DATA DA ADMISSÃO | CF3: DATA DA DEMISSÃO | CG3: CARGO: | CH3: CBO: | CI3: DEPARTAMENTO:- | CJ3: SEÇÃO: | CK3: SALÁRIO INICIAL: | CL3: COMISSÕES: | CM3: TAREFA | CN3: FORMA DE PAGAMENTO | CO3: OPTANTE DO FGTS ? | CP3: BANCO DEPOSITÁRIO | CQ3: ENTRADA MANHÃ | CR3: ENTRADA MANHÃ | CS3: SAÍDA TARDE | CT3: ENTRADA TARDE | CU3: DESCANSO SEMANAL: | CV3: 1º BENEFICIÁRIO - NOME: | CW3: DEPENDENTE SALÁRIO-FAMÍLIA | CX3: DEPENDENTE IMPOSTO DE RENDA | CY3: PARENTESCO | CZ3: DATA DE NASCIMENTO | DA3: N° DA CERTIDÃO | DB3: LIVRO N° | DC3: FOLHA N° | DD3: LAVRADO NO CARTÓRIO DE | DE3: DATA DE EMISSÃO DA CERTIDÃO | DF3: 2º BENEFICIÁRIO - NOME: | DG3: DEPENDENTE SALÁRIO-FAMÍLIA | DH3: DEPENDENTE IMPOSTO DE RENDA | DI3: PARENTESCO | DJ3: DATA DE NASCIMENTO | DK3: N° DA CERTIDÃO | DL3: LIVRO N° | DM3: FOLHA N° | DN3: LAVRADO NO CARTÓRIO DE | DO3: DATA DE EMISSÃO DA CERTIDÃO | DP3: 3º BENEFICIÁRIO - NOME: | DQ3: DEPENDENTE SALÁRIO-FAMÍLIA | DR3: DEPENDENTE IMPOSTO DE RENDA | DS3: PARENTESCO | DT3: DATA DE NASCIMENTO | DU3: N° DA CERTIDÃO | DV3: LIVRO N° | DW3: FOLHA N° | DX3: LAVRADO NO CARTÓRIO DE | DY3: DATA DE EMISSÃO DA CERTIDÃO | DZ3: 4º BENEFICIÁRIO - NOME: | EA3: DEPENDENTE SALÁRIO-FAMÍLIA | EB3: DEPENDENTE IMPOSTO DE RENDA | EC3: PARENTESCO | ED3: DATA DE NASCIMENTO | EE3: N° DA CERTIDÃO | EF3: LIVRO N° | EG3: FOLHA N° | EH3: LAVRADO NO CARTÓRIO DE | EI3: DATA DE EMISSÃO DA CERTIDÃO | EJ3: 5º BENEFICIÁRIO - NOME: | EK3: DEPENDENTE SALÁRIO-FAMÍLIA | EL3: DEPENDENTE IMPOSTO DE RENDA | EM3: PARENTESCO | EN3: DATA DE NASCIMENTO | EO3: N° DA CERTIDÃO | EP3: LIVRO N° | EQ3: FOLHA N° | ER3: LAVRADO NO CARTÓRIO DE | ES3: DATA DE EMISSÃO DA CERTIDÃO | ET3: 6º BENEFICIÁRIO - NOME: | EU3: DEPENDENTE SALÁRIO-FAMÍLIA | EV3: DEPENDENTE IMPOSTO DE RENDA | EW3: PARENTESCO | EX3: DATA DE NASCIMENTO | EY3: N° DA CERTIDÃO | EZ3: LIVRO N° | FA3: FOLHA N° | FB3: LAVRADO NO CARTÓRIO DE | FC3: DATA DE EMISSÃO DA CERTIDÃO | FL3: =TODAY() -> 2014-03-19
A4: 1
A5: 2 | B5: ANGELO | C5: 2 | D5: 1 | E5: 2 | F5: 1934-05-14 | G5: =IF(F5=0," ",IF(F5>0,FL5)) -> 79 | H5: PIRAPOZINHO | I5: =VLOOKUP(J5,$FH$5:$FI$32,2) -> SÃO PAULO | J5: SP | K5: Brasileira | L5: MASCULINO | M5: CASADO | N5: BRANCA | O5: 1.8 | P5: 75 | Q5: CASTANHO | R5: PRETO | S5: NÃO | T5: B+ | U5: SIM | V5: SUPERIOR COMPLETO | W5: 45450 | X5: A-40 | Y5: 45V | Z5: P.PRUDENTE | AA5: 14/05/0005 | AB5: 45450 | AC5: A-40 | AD5: 45V | AE5: P.PRUDENTE | AF5: 14/05/0005 | AG5: JOÃO TONO (FALECIDO) | AH5: BRASILEIRO | AI5: J | AJ5: BRASILEIRA | AK5: 11513514 | AL5: SSP/SP | AM5: 2005-05-14 | AN5: 55563 | AO5: 00038/sp | AP5: PRES.PRUDENTE | AQ5: 2003-10-15 | AW5: 92599999749 | AX5: 12512512512 | AY5: 12512512512 | AZ5: 12512512512 | BA5: 12512512512 | BB5: 12512512512 | BC5: 12512512512 | BD5: 12512512512 | BE5: 11111111111 | BF5: C.E.F | BG5: BRADESCO S/A | BH5: 237 | BI5: 2044-3 | BJ5: RUA JOSE AFONSO | BK5: 45 | BL5: C H ANA JACINTA | BM5: JARDIM ESPLANDA | BN5: 19.013-221 | BO5: PRESIDENTE PRUDENTE | BP5: SÃO PAULO | BQ5: SP | BR5: 018 3905-4555 | BS5: 018 3905-4755 | BT5: 018 9741-4741 | BU5: GGHGHGH | BW5: 2005-04-14 | BX5: 145454145 | BY5: 145.7845.478.78 | BZ5: SIM | CA5: DALVA | CB5: PORTUGAL | CC5: NÃO | CD5: 1 | CE5: 2010-02-01 | CG5: contador | CH5: 4115-10 | CI5: adm | CJ5: contabil | CK5: 1000 | CL5: 1,5% SOBRE O FATURAMENTO INDIVIDUAL | CM5: r$ 0,25 PO PEÇAS PRODUZIDA | CO5: SIM | CP5: C.E.F | CV5: DALVA SUELI SOARES | CW5: NÃO | CX5: SIM | CY5: ESPOSA | CZ5: 1966-12-12 | DA5: 45455 | DB5: A-45 | DC5: 45V | DD5: P.PRUDENTE | DE5: 2004-04-14 | DF5: DALVA SUELI SOARES | DG5: NÃO | DH5: SIM | DI5: ESPOSA | DJ5: 1966-12-12 | DK5: 45455 | DL5: A-45 | DM5: 45V | DN5: P.PRUDENTE | DO5: 2004-04-14 | DP5: DALVA SUELI SOARES | DQ5: NÃO | DR5: SIM | DS5: ESPOSA | DT5: 1966-12-12 | DU5: 45455 | DV5: A-45 | DW5: 45V | DX5: P.PRUDENTE | DY5: 2004-04-14 | DZ5: DALVA SUELI SOARES | EA5: NÃO | EB5: SIM | EC5: ESPOSA | ED5: 1966-12-12 | EE5: 45455 | EF5: A-45 | EG5: 45V | EH5: P.PRUDENTE | EI5: 2004-04-14 | EJ5: DALVA SUELI SOARES | EK5: NÃO | EL5: SIM | EM5: ESPOSA | EN5: 1966-12-12 | EO5: 45455 | EP5: A-45 | EQ5: 45V | ER5: P.PRUDENTE | ES5: 2004-04-14 | ET5: DALVA SUELI SOARES | EU5: NÃO | EV5: SIM | EW5: ESPOSA | EX5: 1966-12-12 | EY5: 45455 | EZ5: A-45 | FA5: 45V | FB5: P.PRUDENTE | FC5: 2004-04-14 | FL5: =YEAR($FL$3)-YEAR(F5)-1+IF(DATE(1901,MONTH(F5),DAY(F5))-DATE(1901,MONTH($FL$3),DAY($FL$3))<=0,1,0) -> 79
A6: 3 | B6: luiz paulo | C6: 4 | D6: 2 | E6: 3 | N6: BRANCA | O6: 1.75 | P6: 65 | Q6: CASTANHO | R6: PRETO | S6: NÃO | T6: B+ | U6: SIM | V6: SUPERIOR COMPLETO | W6: 45451 | X6: A-41 | Y6: 45V | Z6: P.PRUDENTE | AA6: 14/05/0006 | AB6: 45451 | AC6: A-41 | AD6: 45V | AE6: P.PRUDENTE | AF6: 14/05/0006 | AG6: JOÃO TONO (FALECIDO) | AH6: BRASILEIRO | AI6: I | AJ6: BRASILEIRA | AL6: SSP/SP | AM6: 2005-05-15 | AP6: PRES.PRUDENTE | AQ6: 2003-10-16 | AX6: 1993-12-25 | BD6: 2003-05-14 | BF6: C.E.F | BG6: BRADESCO S/A | BH6: 238 | BI6: 2044-4 | BJ6: RUA JOSE AFONSO | BK6: 46 | BL6: C H ANA JACINTA | BM6: JARDIM ESPLANDA | BN6: 19.013-222 | BO6: PRESIDENTE PRUDENTE | BP6: SÃO PAULO | BQ6: SP | BR6: 19 3905-4555 | BS6: 19 3905-4755 | BT6: 19 9741-4741 | BU6: GGHGHGH | BW6: 2005-04-15 | BX6: 145454146 | BY6: 145.7845.478.79 | BZ6: SIM | CA6: DALVA | CB6: PORTUGAL | CC6: NÃO | CD6: 3 | CK6: 5000 | CL6: 1,5% SOBRE O FATURAMENTO INDIVIDUAL | CM6: r$ 0,25 PO PEÇAS PRODUZIDA | CO6: SIM | CP6: C.E.F | CV6: DALVA SUELI SOARES | CW6: NÃO | CX6: SIM | CY6: ESPOSA | CZ6: 1966-12-13 | DA6: 45456 | DB6: A-46 | DC6: 45V | DD6: P.PRUDENTE | DE6: 2004-04-15 | DF6: DALVA SUELI SOARES | DG6: NÃO | DH6: SIM | DI6: ESPOSA | DJ6: 1966-12-13 | DK6: 45456 | DL6: A-46 | DM6: 45V | DN6: P.PRUDENTE | DO6: 2004-04-15 | DP6: DALVA SUELI SOARES | DQ6: NÃO | DR6: SIM | DS6: ESPOSA | DT6: 1966-12-13 | DU6: 45456 | DV6: A-46 | DW6: 45V | DX6: P.PRUDENTE | DY6: 2004-04-15 | DZ6: DALVA SUELI SOARES | EA6: NÃO | EB6: SIM | EC6: ESPOSA | ED6: 1966-12-13 | EE6: 45456 | EF6: A-46 | EG6: 45V | EH6: P.PRUDENTE | EI6: 2004-04-15 | EJ6: DALVA SUELI SOARES | EK6: NÃO | EL6: SIM | EM6: ESPOSA | EN6: 1966-12-13 | EO6: 45456 | EP6: A-46 | EQ6: 45V | ER6: P.PRUDENTE | ES6: 2004-04-15 | ET6: DALVA SUELI SOARES | EU6: NÃO | EV6: SIM | EW6: ESPOSA | EX6: 1966-12-13 | EY6: 45456 | EZ6: A-46 | FA6: 45V | FB6: P.PRUDENTE | FC6: 2004-04-15 | FF6: 1 | FG6: SEGUNDA-FEIRA | FH6: AC | FI6: ACRE | FJ6: MASCULINO | FL6: =YEAR($FL$3)-YEAR(F6)-1+IF(DATE(1901,MONTH(F6),DAY(F6))-DATE(1901,MONTH($FL$3),DAY($FL$3))<=0,1,0) -> 114
A7: 4 | FF7: 2 | FG7: TERÇA-FEIRA | FH7: AL | FI7: ALAGOAS | FJ7: FEMININO | FL7: 114
A8: 5 | FF8: 3 | FG8: QUARTA-FEIRA | FH8: AM | FI8: AMAZOMAS | FL8: 114
A9: 6 | FF9: 4 | FG9: QUINTA-FEIRA | FH9: AP | FI9: AMAPÁ | FJ9: SOLTEIRO | FK9: BRANCA | FL9: 114
A10: 7 | FF10: 5 | FG10: SEXTA-FEIRA | FH10: BA | FI10: BAHIA | FJ10: CASADO | FK10: PRETA | FL10: 114
A11: 8 | FF11: 6 | FG11: SÁBADO | FH11: CE | FI11: CEARÁ | FJ11: DESQUITADO | FK11: PARDA | FL11: 114
A12: 9 | FF12: 7 | FG12: DOMINGO | FH12: DF | FI12: DISTRITO FEDERAL | FJ12: DIVORCIADO | FK12: AMARELA | FL12: 114
A13: 10 | FF13: 8 | FH13: ES | FI13: ESPÍRITO SANTO | FJ13: SEP.JUDIC. | FK13: INDIGENA | FL13: 114
A14: 11 | FF14: 9 | FH14: GO | FI14: GOIÂNIA | FJ14: OUTROS | FK14: NÃO INFORMADO | FL14: 114
A15: 12 | FF15: 10 | FH15: MA | FI15: MARANHÃO | FJ15: UNIÃO ESTÁVEL | FL15: 114
A16: 13 | FF16: 11 | FH16: MG | FI16: MINAS GERAIS | FL16: 114
A17: 14 | FF17: 12 | FH17: MT | FI17: MATO GROSSO | FL17: 114
A18: 15 | FF18: 13 | FH18: MS | FI18: MATO GROSSO DO SUL | FL18: 114
A19: 16 | FF19: 14 | FH19: PA | FI19: PARÁ | FL19: 114
A20: 17 | FF20: 15 | FH20: PB | FI20: PARAÍBA | FL20: 114
A21: 18 | FH21: PE | FI21: PERNAMBUCO | FL21: 114
A22: 19 | FH22: PI | FI22: PIAUÍ | FL22: 114
A23: 20 | FH23: PR | FI23: PARANÁ | FL23: 114
A24: 21 | FH24: RJ | FI24: RIO DE JANEIRO | FL24: 114
A25: 22 | FH25: RN | FI25: RIO GRANDE DO NORTE | FL25: 114
A26: 23 | FH26: RO | FI26: RONDÔNIA | FL26: 114
A27: 24 | FH27: RR | FI27: RORAIMA | FL27: 114
A28: 25 | FH28: RS | FI28: RIO GRANDE DO SUL | FL28: 114
A29: 26 | FH29: SC | FI29: SANTA CATARINA | FL29: 114
A30: 27 | FH30: SE | FI30: SERGIPE | FL30: 114
A31: 28 | FH31: SP | FI31: SÃO PAULO | FL31: 114
A32: 29 | FH32: TO | FI32: TOCANTINS | FL32: 114
A33: 30 | FL33: 114
A34: 31 | FL34: 114
A35: 32 | FL35: 114
A36: 33 | FL36: 114
A37: 34 | FL37: 114
A38: 35 | FL38: 114
A39: 36 | FL39: 114
A40: 37 | FL40: 114
A41: 38 | FL41: 114
A42: 39 | FL42: 114
A43: 40 | FL43: 114
A44: 41 | FL44: 114
A45: 42 | FL45: 114
A46: 43 | FL46: 114
A47: 44 | FL47: 114
A48: 45 | FL48: 114
A49: 46 | FL49: 114
A50: 47 | FL50: 114
A51: 48 | FL51: 114
A52: 49 | FL52: 114
A53: 50 | FL53: 114
A54: 51 | FL54: 114
A55: 52 | FL55: 114
A56: 53 | FL56: 114
A57: 54 | FL57: 114
A58: 55 | FL58: 114
A59: 56 | FL59: 114
A60: 57 | FL60: 114
A61: 58 | FL61: 114
A62: 59 | FL62: 114
A63: 60 | FL63: 114
A64: 61 | FL64: 114
A65: 62 | FL65: 114
A66: 63 | FL66: 114
A67: 64 | FL67: 114
A68: 65 | FL68: 114
A69: 66 | G69: =IF(F69=0," ",IF(F69>0,FL69)) ->  | I69: =VLOOKUP(J69,$FH$5:$FI$32,2) ->  | FL69: 114
A70: 67 | FL70: =YEAR($FL$3)-YEAR(F70)-1+IF(DATE(1901,MONTH(F70),DAY(F70))-DATE(1901,MONTH($FL$3),DAY($FL$3))<=0,1,0) -> 114
A71: 68 | FL71: 114
A72: 69 | FL72: 114
A73: 70 | FL73: 114
A74: 71 | FL74: 114
A75: 72 | FL75: 114
A76: 73 | FL76: 114
A77: 74 | FL77: 114
A78: 75 | FL78: 114
A79: 76 | FL79: 114
A80: 77 | FL80: 114
A81: 78 | FL81: 114
A82: 79 | FL82: 114
A83: 80 | FL83: 114
A84: 81 | FL84: 114
A85: 82 | FL85: 114
A86: 83 | FL86: 114
A87: 84 | FL87: 114
A88: 85 | FL88: 114
A89: 86 | FL89: 114
A90: 87 | FL90: 114
A91: 88 | FL91: 114
A92: 89 | FL92: 114
A93: 90 | FL93: 114
A94: 91 | FL94: 114
A95: 92 | FL95: 114
A96: 93 | FL96: 114
A97: 94 | FL97: 114
A98: 95 | FL98: 114
A99: 96 | FL99: 114
A100: 97 | FL100: 114
A101: 98 | FL101: 114
A102: 99 | FL102: 114
A103: 100 | FL103: 114
A104: 101 | FL104: 114
A105: 102 | FL105: 114
A106: 103 | FL106: 114
A107: 104 | FL107: 114
A108: 105 | FL108: 114
A109: 106 | FL109: 114
A110: 107 | FL110: 114
A111: 108 | FL111: 114
A112: 109 | FL112: 114
A113: 110 | FL113: 114
A114: 111 | FL114: 114
A115: 112 | FL115: 114
A116: 113 | FL116: 114
A117: 114 | FL117: 114
A118: 115 | FL118: 114
A119: 116 | FL119: 114
A120: 117 | FL120: 114
A121: 118 | FL121: 114
A122: 119 | FL122: 114
A123: 120 | FL123: 114
A124: 121 | FL124: 114
A125: 122 | FL125: 114
A126: 123 | FL126: 114
A127: 124 | FL127: 114
A128: 125 | FL128: 114
A129: 126 | FL129: 114
A130: 127 | FL130: 114
A131: 128 | FL131: 114
A132: 129 | FL132: 114
A133: 130 | G133: =IF(F133=0," ",IF(F133>0,FL133)) ->  | I133: =VLOOKUP(J133,$FH$5:$FI$32,2) ->  | FL133: 114
A134: 131 | FL134: =YEAR($FL$3)-YEAR(F134)-1+IF(DATE(1901,MONTH(F134),DAY(F134))-DATE(1901,MONTH($FL$3),DAY($FL$3))<=0,1,0) -> 114
A135: 132 | FL135: 114
A136: 133 | FL136: 114
A137: 134 | FL137: 114
A138: 135 | FL138: 114
A139: 136 | FL139: 114
A140: 137 | FL140: 114
A141: 138 | FL141: 114
A142: 139 | FL142: 114
A143: 140 | FL143: 114
A144: 141 | FL144: 114
A145: 142 | FL145: 114
A146: 143 | FL146: 114
A147: 144 | FL147: 114
A148: 145 | FL148: 114
A149: 146 | FL149: 114
A150: 147 | FL150: 114
A151: 148 | FL151: 114
A152: 149 | FL152: 114
A153: 150 | FL153: 114
A154: 151 | FL154: 114
A155: 152 | FL155: 114
A156: 153 | FL156: 114
A157: 154 | FL157: 114
A158: 155 | FL158: 114
A159: 156 | FL159: 114
A160: 157 | FL160: 114
A161: 158 | FL161: 114
A162: 159 | FL162: 114
A163: 160 | FL163: 114
A164: 161 | FL164: 114
A165: 162 | FL165: 114
A166: 163 | FL166: 114
A167: 164 | FL167: 114
A168: 165 | FL168: 114
A169: 166 | FL169: 114
A170: 167 | FL170: 114
A171: 168 | FL171: 114
A172: 169 | FL172: 114
A173: 170 | FL173: 114
A174: 171 | FL174: 114
A175: 172 | FL175: 114
A176: 173 | FL176: 114
A177: 174 | FL177: 114
A178: 175 | FL178: 114
A179: 176 | FL179: 114
A180: 177 | FL180: 114
A181: 178 | FL181: 114
A182: 179 | FL182: 114
A183: 180 | FL183: 114
A184: 181 | FL184: 114
A185: 182 | FL185: 114
A186: 183 | FL186: 114
A187: 184 | FL187: 114
A188: 185 | FL188: 114
A189: 186 | FL189: 114
A190: 187 | FL190: 114
A191: 188 | FL191: 114
A192: 189 | FL192: 114
A193: 190 | FL193: 114
A194: 191 | FL194: 114
A195: 192 | FL195: 114
A196: 193 | FL196: 114
A197: 194 | G197: =IF(F197=0," ",IF(F197>0,FL197)) ->  | I197: =VLOOKUP(J197,$FH$5:$FI$32,2) ->  | FL197: 114
A198: 195 | FL198: =YEAR($FL$3)-YEAR(F198)-1+IF(DATE(1901,MONTH(F198),DAY(F198))-DATE(1901,MONTH($FL$3),DAY($FL$3))<=0,1,0) -> 114
A199: 196 | FL199: 114
A200: 197 | FL200: 114
... 327 more rows

Sheet EMP
B1: 2 | C1: 3 | D1: 4 | E1: 5 | F1: 6 | G1: 7 | H1: 8 | I1: 8 | J1: 10 | K1: 11 | L1: 12 | M1: 13 | N1: 14 | O1: 15 | P1: 16 | Q1: 17 | R1: 18 | S1: 19
B2: NOME DA EMPRESA | C2: ENDEREÇO | D2: NÚMERO | E2: COMPLEMENTO | F2: BAIRRO | G2: CIDADE | H2: ESTADO | I2: UF | J2: CEP | K2: PAÍS | L2: FONE | M2: FAX | N2: E-MAIL | O2: CNPJ / CPF / CEI | P2: INSCRIÇÃO ESTADUAL | Q2: INSCRIÇÃO MUNICIPAL | R2: PESSOAL DE CONTATO | S2: NOME DO BANCO | T2: N° BANCO | U2: N° DA AGÊNCIA | V2: C/ CORRENTE
A3: 1
A4: 2 | B4: Disk Automoveis Ltda | C4: Rua da Pedras | D4: 10 | E4: Bloco B | F4: Centro | G4: Pres.Prudente | H4: =VLOOKUP(I4,W4:X31,2) -> SÃO PAULO | I4: sp | J4: 19013221 | K4: BRASIL | L4: 1839024755 | O4: 55683486000100 | P4: 562.005.580-113 | Q4: 56.25 | R4: ADALBERTO | S4: BRADESCO S/A | T4: 237 | U4: 337-3 | V4: 19.120-1
A5: 3 | W5: AC | X5: ACRE
A6: 4 | W6: AL | X6: ALAGOAS
A7: 5 | W7: AM | X7: AMAZOMAS
A8: 6 | W8: AP | X8: AMAPÁ
A9: 7 | W9: BA | X9: BAHIA
A10: 8 | W10: CE | X10: CEARÁ
A11: 9 | W11: DF | X11: DISTRITO FEDERAL
A12: 10 | W12: ES | X12: ESPÍRITO SANTO
A13: 11 | W13: GO | X13: GOIÂNIA
A14: 12 | W14: MA | X14: MARANHÃO
A15: 13 | W15: MG | X15: MINAS GERAIS
A16: 14 | W16: MT | X16: MATO GROSSO
A17: 15 | W17: MS | X17: MATO GROSSO DO SUL
A18: 16 | W18: PA | X18: PARÁ
A19: 17 | W19: PB | X19: PARAÍBA
A20: 18 | W20: PE | X20: PERNAMBUCO
A21: 19 | W21: PI | X21: PIAUÍ
A22: 20 | W22: PR | X22: PARANÁ
W23: RJ | X23: RIO DE JANEIRO
W24: RN | X24: RIO GRANDE DO NORTE
W25: RO | X25: RONDÔNIA
W26: RR | X26: RORAIMA
W27: RS | X27: RIO GRANDE DO SUL
W28: SC | X28: SANTA CATARINA
W29: SE | X29: SERGIPE
W30: SP | X30: SÃO PAULO
W31: TO | X31: TOCANTINS
H36: =VLOOKUP(I36,W36:X63,2) -> 

Sheet DADOS
C2: Para limpar campos digitados use o botão LIMPA DIGITAÇÃO ou a tecla "delete" | K2: =IF(K3=1,L3/3,IF(K3=2,0)) -> 0 | L2: =VLOOKUP(I8,M2:N6,2) -> 5 | M2: 0 | N2: 5 | P2: =VLOOKUP(K8,Q2:R22,2) -> 364 | Q2: 2004 | R2: 365
A3: ESCOLHA O FUNCIONÁRIO QUE SAIRÁ DE FÉRIAS | G3: 2 | K3: 2 | L3: =IF(L2=5,30,IF(L2=14,24,IF(L2=23,18,IF(L2=32,12,IF(L2=0,0))))) -> 30 | M3: 6 | N3: 14 | Q3: 2005 | R3: 364 | S3: 2010-01-01 | T3: =TEXT(S3,"dddd") -> sexta-feira | U3: 2010-01-01 | V3: =TEXT(U3,"dddd") -> sexta-feira
A4: ESCOLHA A EMPRESA DESTE FUNCIONÁRIO | G4: 2 | M4: 15 | N4: 23 | Q4: 2006 | R4: 364 | S4: 2010-01-02 | T4: sábado | U4: 2010-01-02 | V4: sábado
G5: VALOR MÉDIA DE HORA-EXTRA | M5: 24 | N5: 32 | Q5: 2007 | R5: 364 | S5: 2010-01-03 | T5: domingo | U5: 2010-01-03 | V5: domingo
A6: VALOR DA MÉDIA DE COMISSÕES | E6: 0 | F6: VALOR DA MÉDIA DE ADICIONAIS | M6: 33 | N6: 0 | Q6: 2008 | R6: 365 | S6: 2010-01-04 | T6: segunda-feira | U6: 2010-01-04 | V6: segunda-feira
A7: PERÍODO AQUISITIVO DAS FÉRIAS | E7: 2013-01-14 | F7: =IF(E7=0," ",IF(E7>0,E7+M35)) -> 2014-01-13 | G7: DIREITO ADQUIRIDO DE FÉRIAS | K7: DIAS DE FÉRIAS | Q7: 2009 | R7: 364 | S7: 2010-01-05 | T7: terça-feira | U7: 2010-01-05 | V7: terça-feira | Z7: =DAY(E7-1) -> 13
A8: QUANTIDADE DE DIAS DE FÉRIAS GOZADAS | E8: =IF(K3=1,L3-K2,IF(K3=2,L3)) -> 30 | F8: QUANTIDADE DE FALTAS DENTRO DO PERÍODO AQUISITIVO | I8: 0 | K8: =YEAR(E7) -> 2013 | L8: =YEAR(F7) -> 2014 | M8: =VLOOKUP(G3,FUNC!3:4500,7) -> 79 | N8: IDADE | Q8: 2010 | R8: 364 | S8: 2010-01-06 | T8: quarta-feira | U8: 2010-01-06 | V8: quarta-feira
A9: QUANTIDADE DE DIAS DE ABONO PECUNIÁRIO | E9: =IF(K3=1,K2,IF(K3=2,K2)) -> 0 | F9: INÍCIO | G9: =IF(E10=0," ",IF(E9>0,I10+1,IF(E9=0," "))) ->  | H9: TÉRMINO | I9: =IF(E10=0," ",IF(E9>0,G9+E9-1,IF(E9=0," "))) ->  | K9: Venc 2 férias | L9: =IF(M9=0,0,IF(M9=1,DAY(I10-DAY(K10)))) -> 0 | M9: =IF(E10>=K10,1,IF(E10<K10,0)) -> 0 | Q9: 2011 | R9: 364 | S9: 2010-01-07 | T9: quinta-feira | U9: 2010-01-07 | V9: quinta-feira | AA9: =IF(G9=0,0,IF(G9>0,E9)) -> 0 | AB9: =IF(G9=" ",0,IF(AA9=0,0,IF(AA9>0,I9-G9+1))) -> 00:00:00
A10: DATA DE INÍCIO DAS FÉRIAS GOZADAS | E10: 2014-04-02 | F10: TÉRMINO DAS FÉRIAS | I10: =IF(E10=0," ",IF(E10>0,E10+E8-1)) -> 2014-05-01 | K10: =F7+365 -> 2015-01-13 | L10: =IF(M9=0,0,IF(E9=0,0,IF(E9>0,E9))) -> 0 | M10: =SUM(L9:L10) -> 0 | Q10: 2012 | R10: 365 | S10: 2010-01-08 | T10: sexta-feira | U10: 2010-01-08 | V10: sexta-feira | W10: 30 dias aviso férias | AA10: =IF(E10="","0",IF(E10>0,E8)) -> 30 | AB10: =IF(E10="",0,IF(AA10=0,0,IF(AA10>0,I10-E10+1))) -> 1900-01-30
A11: DATA DO AVISO PRÉVIO DE FÉRIAS | E11: 2014-02-28 | F11: Comunicar as férias com antecedência mínima de 30 dias | I11: ÚLTIMO DIA | K11: =K10+E8+E9 -> 2015-02-12 | L11: =MONTH(K10) -> 1 | Q11: 2013 | R11: 364 | S11: 2010-01-09 | T11: sábado | U11: 2010-01-09 | V11: sábado | W11: =E10-30 -> 2014-03-03 | X11: =IF(W12="sábado",W11-1,IF(W12="domingo",W11-2,IF(W12<>"domingo",W11))) -> 2014-03-03
I12: =X11 -> 2014-03-03 | Q12: 2014 | R12: 364 | S12: 2010-01-10 | T12: domingo | U12: 2010-01-10 | V12: domingo | W12: =VLOOKUP(W11,U3:V2193,2) -> segunda-feira
A13: DATA DE PAGAMENTO DAS FÉRIAS | E13: 2014-03-28 | F13: =RECIBO!$B$62 -> OBS:- O empregado deverá dar quitado do recibo de férias, pelo menos 2 (dois) dias antes do período de gozo de férias | I13: ÚLTIMO DIA | K13: =K11-K10 -> 30 | Q13: 2015 | R13: 364 | S13: 2010-01-11 | T13: segunda-feira | U13: 2010-01-11 | V13: segunda-feira | W13: Pagamento das férias
I14: =X14 -> 2014-03-31 | Q14: 2016 | R14: 365 | S14: 2010-01-12 | T14: terça-feira | U14: 2010-01-12 | V14: terça-feira | W14: =E10-2 -> 2014-03-31 | X14: =IF(W15="sábado",W14-1,IF(W15="domingo",W14-2,IF(W15<>"domingo",W14))) -> 2014-03-31
A15: DATA DO RETORNO AO TRABALHO | E15: =IF(I10=" "," ",IF(I10>0,I10+1)) -> 2014-05-02 | F15: Dia do retorno for no domingo, feriado ou dia já compensado, retorne no primeiro dia útil seguinte. | Q15: 2017 | R15: 364 | S15: 2010-01-13 | T15: quarta-feira | U15: 2010-01-13 | V15: quarta-feira | W15: =VLOOKUP(W14,$U$3:$V$2193,2) -> segunda-feira
A16: DATA SOLICITAÇÃO DO ABONO PECUNIÁRIO | F16: Deverá ser solicitado 15 dias antes do término do período aquisitivo | I16: ÚLTIMO DIA | Q16: 2018 | R16: 364 | S16: 2010-01-14 | T16: quinta-feira | U16: 2010-01-14 | V16: quinta-feira | W16: abono pecuniário
I17: =X17 -> 2013-12-27 | Q17: 2019 | R17: 364 | S17: 2010-01-15 | T17: sexta-feira | U17: 2010-01-15 | V17: sexta-feira | W17: =IF(F7=" "," ",IF(F7>0,F7-15)) -> 2013-12-29 | X17: =IF(W18="sábado",W17-1,IF(W18="domingo",W17-2,IF(W18<>"domingo",W17))) -> 2013-12-27
A18: DATA DA SOLICITAÇÃO DA 1ª PARCELA DO 13° SALÁRIO | F18: Requer sempre no mês de Janeiro. Ou seja de 01 a 31 de Janeiro | K18: INSS | M18: IRRF | O18: FGTS | Q18: 2020 | R18: 365 | S18: 2010-01-16 | T18: sábado | U18: 2010-01-16 | V18: sábado | W18: =VLOOKUP(W17,$U$3:$V$2193,2) -> domingo
A19: FÉRIAS GOZADAS (FIXO MAIS VARIÁVEL) - (DESCANSO) | F19: =RECIBO!AH29 -> 1000 | K19: TRUE | L19: =IF(K19=TRUE,$F$19,IF(K19=FALSE,0)) -> 1000 | M19: TRUE | N19: =IF(M19=TRUE,$F$19,IF(M19=FALSE,0)) -> 1000 | O19: TRUE | P19: =IF(O19=TRUE,$F19,IF(O19=FALSE,0)) -> 1000 | Q19: 2021 | R19: 364 | S19: 2010-01-17 | T19: domingo | U19: 2010-01-17 | V19: domingo
A20: 1/3 SOBRE AS FÉRIAS GOZADAS | F20: =RECIBO!AH30 -> 333.33 | K20: TRUE | L20: =IF(K20=TRUE,F20,IF(K20=FALSE,0)) -> 333.33 | M20: TRUE | N20: =IF(M20=TRUE,$F20,IF(M20=FALSE,0)) -> 333.33 | O20: TRUE | P20: =IF(O20=TRUE,$F20,IF(O20=FALSE,0)) -> 333.33 | Q20: 2022 | R20: 364 | S20: 2010-01-18 | T20: segunda-feira | U20: 2010-01-18 | V20: segunda-feira
A21: ABONO PECUNIÁRIO DE FÉRIAS (FIXO MAIS VARIÁVEL) | F21: =RECIBO!AH31 -> 0 | K21: FALSE | L21: 0 | M21: FALSE | N21: 0 | O21: FALSE | P21: 0 | Q21: 2023 | R21: 364 | S21: 2010-01-19 | T21: terça-feira | U21: 2010-01-19 | V21: terça-feira
A22: 1/3 SOBRE O ABONO PECUNIÁRIO DE FÉRIAS | F22: =RECIBO!AH32 -> 0 | K22: FALSE | L22: 0 | M22: FALSE | N22: 0 | O22: FALSE | P22: 0 | Q22: 2024 | R22: 365 | S22: 2010-01-20 | T22: quarta-feira | U22: 2010-01-20 | V22: quarta-feira
A23: ADIANTAMENTO 50% (PRIMEIRA PARCELA DO 13º SALÁRIO) | F23: 0 | K23: FALSE | L23: 0 | M23: FALSE | N23: 0 | O23: TRUE | P23: 0 | S23: 2010-01-21 | T23: quinta-feira | U23: 2010-01-21 | V23: quinta-feira
A24: FÉRIAS PAGA EM DOBRO | K24: FALSE | L24: 0 | M24: FALSE | N24: 0 | O24: FALSE | P24: 0 | S24: 2010-01-22 | T24: sexta-feira | U24: 2010-01-22 | V24: sexta-feira
A25: 1/3 SOBRE AS FÉRIAS EM DOBRO | F25: =F24/3 -> 0 | K25: FALSE | L25: 0 | M25: FALSE | N25: 0 | O25: FALSE | P25: 0 | S25: 2010-01-23 | T25: sábado | U25: 2010-01-23 | V25: sábado
F26: 0 | K26: TRUE | L26: 0 | M26: TRUE | N26: 0 | O26: TRUE | P26: 0 | S26: 2010-01-24 | T26: domingo | U26: 2010-01-24 | V26: domingo
F27: 0 | K27: FALSE | L27: 0 | M27: FALSE | N27: 0 | O27: TRUE | P27: 0 | S27: 2010-01-25 | T27: segunda-feira | U27: 2010-01-25 | V27: segunda-feira
K28: saldo | L28: =SUM(L19:L27) -> 1333.33 | N28: =SUM(N19:N27) -> 1333.33 | P28: =SUM(P19:P27) -> 1333.33 | S28: 2010-01-26 | T28: terça-feira | U28: 2010-01-26 | V28: terça-feira
F29: 0 | H29: Precisando de ajuda:- angelo.tonon@ig.com.br | K29: teto-máximo | L29: =IF(L28>=TB!E13,TB!E13,IF(L28<TB!E13,DADOS!L28)) -> 1333.33 | N29: =(RECIBO!H44*TB!G29)+(RECIBO!Q43) -> 479.42 | O29: dep+inss | S29: 2010-01-27 | T29: quarta-feira | U29: 2010-01-27 | V29: quarta-feira
F30: 0 | N30: =IF(TB!K19=1,TB!G18,IF(TB!K19=2,0)) -> 0 | O30: pensao | S30: 2010-01-28 | T30: quinta-feira | U30: 2010-01-28 | V30: quinta-feira
F31: 0 | N31: =IF(N28-N29-N30<0,0,IF(N28-N29-N30>0,N28-N29-N30)) -> 853.91 | S31: 2010-01-29 | T31: sexta-feira | U31: 2010-01-29 | V31: sexta-feira
A32: =IF(TB!K19=1,"Pensão Alimentícia",IF(TB!K19=2, " ")) -> Pensão Alimentícia | C32: =IF(TB!K19=1,"Férias",IF(TB!K19=2, " ")) -> Férias | F32: =IF(TB!K19=1,TB!G18,IF(TB!K19=2,0)) -> 0 | S32: 2010-01-30 | T32: sábado | U32: 2010-01-30 | V32: sábado
S33: 2010-01-31 | T33: domingo | U33: 2010-01-31 | V33: domingo
S34: 2011-01-01 | T34: sábado | U34: 2010-02-01 | V34: segunda-feira
M35: =VLOOKUP(E7,N35:P59,3) -> 364 | N35: 2004-01-01 | O35: 2004-02-01 | P35: 365 | S35: 2011-01-02 | T35: domingo | U35: 2010-02-02 | V35: terça-feira
N36: 2004-03-01 | O36: 2004-12-01 | P36: 364 | S36: 2011-01-03 | T36: segunda-feira | U36: 2010-02-03 | V36: quarta-feira
N37: 2005-01-01 | O37: 2005-12-01 | P37: 364 | S37: 2011-01-04 | T37: =TEXT(S37,"dddd") -> terça-feira | U37: 2010-02-04 | V37: quinta-feira
N38: 2006-01-01 | O38: 2006-12-01 | P38: 364 | S38: 2011-01-05 | T38: quarta-feira | U38: 2010-02-05 | V38: sexta-feira
N39: 2007-01-01 | O39: 2007-02-01 | P39: 364 | S39: 2011-01-06 | T39: quinta-feira | U39: 2010-02-06 | V39: sábado
N40: 2007-03-01 | O40: 2007-12-01 | P40: 365 | S40: 2011-01-07 | T40: sexta-feira | U40: 2010-02-07 | V40: domingo
N41: 2008-01-01 | O41: 2008-02-01 | P41: 365 | S41: 2011-01-08 | T41: sábado | U41: 2010-02-08 | V41: =TEXT(U41,"dddd") -> segunda-feira
N42: 2008-03-01 | O42: 2008-12-01 | P42: 364 | S42: 2011-01-09 | T42: domingo | U42: 2010-02-09 | V42: terça-feira
N43: 2009-01-01 | O43: 2009-12-01 | P43: 364 | S43: 2011-01-10 | T43: segunda-feira | U43: 2010-02-10 | V43: quarta-feira
N44: 2010-01-01 | O44: 2010-12-01 | P44: 364 | S44: 2011-01-11 | T44: terça-feira | U44: 2010-02-11 | V44: quinta-feira
N45: 2011-01-01 | O45: 2011-02-01 | P45: 364 | S45: 2011-01-12 | T45: quarta-feira | U45: 2010-02-12 | V45: sexta-feira
N46: 2011-03-01 | O46: 2011-12-01 | P46: 365 | S46: 2011-01-13 | T46: quinta-feira | U46: 2010-02-13 | V46: sábado
N47: 2012-01-01 | O47: 2012-02-01 | P47: 365 | S47: 2011-01-14 | T47: sexta-feira | U47: 2010-02-14 | V47: domingo
N48: 2012-03-01 | O48: 2012-12-01 | P48: 364 | S48: 2011-01-15 | T48: sábado | U48: 2010-02-15 | V48: segunda-feira
N49: 2013-01-01 | O49: 2013-12-01 | P49: 364 | S49: 2011-01-16 | T49: domingo | U49: 2010-02-16 | V49: terça-feira
N50: 2014-01-01 | O50: 2014-12-01 | P50: 364 | S50: 2011-01-17 | T50: segunda-feira | U50: 2010-02-17 | V50: quarta-feira
N51: 2015-01-01 | O51: 2015-02-01 | P51: 364 | S51: 2011-01-18 | T51: terça-feira | U51: 2010-02-18 | V51: quinta-feira
N52: 2015-03-01 | O52: 2015-12-01 | P52: 365 | S52: 2011-01-19 | T52: quarta-feira | U52: 2010-02-19 | V52: sexta-feira
N53: 2016-01-01 | O53: 2016-02-01 | P53: 365 | S53: 2011-01-20 | T53: quinta-feira | U53: 2010-02-20 | V53: sábado
N54: 2016-03-01 | O54: 2016-12-01 | P54: 364 | S54: 2011-01-21 | T54: sexta-feira | U54: 2010-02-21 | V54: domingo
N55: 2017-01-01 | O55: 2017-12-01 | P55: 364 | S55: 2011-01-22 | T55: sábado | U55: 2010-02-22 | V55: segunda-feira
N56: 2018-01-01 | O56: 2018-12-01 | P56: 364 | S56: 2011-01-23 | T56: domingo | U56: 2010-02-23 | V56: terça-feira
N57: 2019-01-01 | O57: 2019-02-01 | P57: 364 | S57: 2011-01-24 | T57: segunda-feira | U57: 2010-02-24 | V57: quarta-feira
N58: 2019-03-01 | O58: 2019-12-01 | P58: 365 | S58: 2011-01-25 | T58: terça-feira | U58: 2010-02-25 | V58: quinta-feira
N59: 2020-01-01 | O59: 2020-02-01 | P59: 365 | S59: 2011-01-26 | T59: quarta-feira | U59: 2010-02-26 | V59: sexta-feira
N60: 2020-03-01 | O60: 2020-12-01 | P60: 364 | S60: 2011-01-27 | T60: quinta-feira | U60: 2010-02-27 | V60: sábado
N61: 2021-01-01 | O61: 2021-12-01 | P61: 364 | S61: 2011-01-28 | T61: sexta-feira | U61: 2010-02-28 | V61: domingo
N62: 2022-01-01 | O62: 2022-12-01 | P62: 364 | S62: 2011-01-29 | T62: sábado | U62: 2010-03-01 | V62: segunda-feira
N63: 2023-01-01 | O63: 2023-02-01 | P63: 364 | S63: 2011-01-30 | T63: domingo | U63: 2010-03-02 | V63: terça-feira
N64: 2023-03-01 | O64: 2023-12-01 | P64: 365 | S64: 2011-01-31 | T64: segunda-feira | U64: 2010-03-03 | V64: quarta-feira
N65: 2024-01-01 | O65: 2024-02-01 | P65: 365 | S65: 2012-01-01 | T65: domingo | U65: 2010-03-04 | V65: quinta-feira
S66: 2012-01-02 | T66: segunda-feira | U66: 2010-03-05 | V66: sexta-feira
S67: 2012-01-03 | T67: terça-feira | U67: 2010-03-06 | V67: sábado
S68: 2012-01-04 | T68: quarta-feira | U68: 2010-03-07 | V68: domingo
S69: 2012-01-05 | T69: quinta-feira | U69: 2010-03-08 | V69: segunda-feira
S70: 2012-01-06 | T70: sexta-feira | U70: 2010-03-09 | V70: terça-feira
S71: 2012-01-07 | T71: sábado | U71: 2010-03-10 | V71: quarta-feira
S72: 2012-01-08 | T72: domingo | U72: 2010-03-11 | V72: quinta-feira
S73: 2012-01-09 | T73: segunda-feira | U73: 2010-03-12 | V73: sexta-feira
S74: 2012-01-10 | T74: terça-feira | U74: 2010-03-13 | V74: sábado
S75: 2012-01-11 | T75: quarta-feira | U75: 2010-03-14 | V75: domingo
S76: 2012-01-12 | T76: quinta-feira | U76: 2010-03-15 | V76: segunda-feira
S77: 2012-01-13 | T77: sexta-feira | U77: 2010-03-16 | V77: terça-feira
S78: 2012-01-14 | T78: sábado | U78: 2010-03-17 | V78: quarta-feira
S79: 2012-01-15 | T79: domingo | U79: 2010-03-18 | V79: quinta-feira
S80: 2012-01-16 | T80: segunda-feira | U80: 2010-03-19 | V80: sexta-feira
S81: 2012-01-17 | T81: terça-feira | U81: 2010-03-20 | V81: sábado
S82: 2012-01-18 | T82: quarta-feira | U82: 2010-03-21 | V82: domingo
S83: 2012-01-19 | T83: quinta-feira | U83: 2010-03-22 | V83: segunda-feira
S84: 2012-01-20 | T84: sexta-feira | U84: 2010-03-23 | V84: terça-feira
S85: 2012-01-21 | T85: sábado | U85: 2010-03-24 | V85: quarta-feira
S86: 2012-01-22 | T86: domingo | U86: 2010-03-25 | V86: quinta-feira
S87: 2012-01-23 | T87: segunda-feira | U87: 2010-03-26 | V87: sexta-feira
S88: 2012-01-24 | T88: terça-feira | U88: 2010-03-27 | V88: sábado
S89: 2012-01-25 | T89: quarta-feira | U89: 2010-03-28 | V89: domingo
S90: 2012-01-26 | T90: quinta-feira | U90: 2010-03-29 | V90: segunda-feira
S91: 2012-01-27 | T91: sexta-feira | U91: 2010-03-30 | V91: terça-feira
S92: 2012-01-28 | T92: sábado | U92: 2010-03-31 | V92: quarta-feira
S93: 2012-01-29 | T93: domingo | U93: 2010-04-01 | V93: quinta-feira
S94: 2012-01-30 | T94: segunda-feira | U94: 2010-04-02 | V94: sexta-feira
S95: 2012-01-31 | T95: terça-feira | U95: 2010-04-03 | V95: sábado
S96: 2013-01-01 | T96: terça-feira | U96: 2010-04-04 | V96: domingo
S97: 2013-01-02 | T97: quarta-feira | U97: 2010-04-05 | V97: segunda-feira
S98: 2013-01-03 | T98: quinta-feira | U98: 2010-04-06 | V98: terça-feira
S99: 2013-01-04 | T99: sexta-feira | U99: 2010-04-07 | V99: quarta-feira
S100: 2013-01-05 | T100: sábado | U100: 2010-04-08 | V100: quinta-feira
S101: 2013-01-06 | T101: =TEXT(S101,"dddd") -> domingo | U101: 2010-04-09 | V101: sexta-feira
S102: 2013-01-07 | T102: segunda-feira | U102: 2010-04-10 | V102: sábado
S103: 2013-01-08 | T103: terça-feira | U103: 2010-04-11 | V103: domingo
S104: 2013-01-09 | T104: quarta-feira | U104: 2010-04-12 | V104: segunda-feira
S105: 2013-01-10 | T105: quinta-feira | U105: 2010-04-13 | V105: =TEXT(U105,"dddd") -> terça-feira
S106: 2013-01-11 | T106: sexta-feira | U106: 2010-04-14 | V106: quarta-feira
S107: 2013-01-12 | T107: sábado | U107: 2010-04-15 | V107: quinta-feira
S108: 2013-01-13 | T108: domingo | U108: 2010-04-16 | V108: sexta-feira
S109: 2013-01-14 | T109: segunda-feira | U109: 2010-04-17 | V109: sábado
S110: 2013-01-15 | T110: terça-feira | U110: 2010-04-18 | V110: domingo
S111: 2013-01-16 | T111: quarta-feira | U111: 2010-04-19 | V111: segunda-feira
S112: 2013-01-17 | T112: quinta-feira | U112: 2010-04-20 | V112: terça-feira
S113: 2013-01-18 | T113: sexta-feira | U113: 2010-04-21 | V113: quarta-feira
S114: 2013-01-19 | T114: sábado | U114: 2010-04-22 | V114: quinta-feira
S115: 2013-01-20 | T115: domingo | U115: 2010-04-23 | V115: sexta-feira
S116: 2013-01-21 | T116: segunda-feira | U116: 2010-04-24 | V116: sábado
S117: 2013-01-22 | T117: terça-feira | U117: 2010-04-25 | V117: domingo
S118: 2013-01-23 | T118: quarta-feira | U118: 2010-04-26 | V118: segunda-feira
S119: 2013-01-24 | T119: quinta-feira | U119: 2010-04-27 | V119: terça-feira
S120: 2013-01-25 | T120: sexta-feira | U120: 2010-04-28 | V120: quarta-feira
S121: 2013-01-26 | T121: sábado | U121: 2010-04-29 | V121: quinta-feira
S122: 2013-01-27 | T122: domingo | U122: 2010-04-30 | V122: sexta-feira
S123: 2013-01-28 | T123: segunda-feira | U123: 2010-05-01 | V123: sábado
S124: 2013-01-29 | T124: terça-feira | U124: 2010-05-02 | V124: domingo
S125: 2013-01-30 | T125: quarta-feira | U125: 2010-05-03 | V125: segunda-feira
S126: 2013-01-31 | T126: quinta-feira | U126: 2010-05-04 | V126: terça-feira
S127: 2014-01-01 | T127: quarta-feira | U127: 2010-05-05 | V127: quarta-feira
S128: 2014-01-02 | T128: quinta-feira | U128: 2010-05-06 | V128: quinta-feira
S129: 2014-01-03 | T129: sexta-feira | U129: 2010-05-07 | V129: sexta-feira
S130: 2014-01-04 | T130: sábado | U130: 2010-05-08 | V130: sábado
S131: 2014-01-05 | T131: domingo | U131: 2010-05-09 | V131: domingo
S132: 2014-01-06 | T132: segunda-feira | U132: 2010-05-10 | V132: segunda-feira
S133: 2014-01-07 | T133: terça-feira | U133: 2010-05-11 | V133: terça-feira
S134: 2014-01-08 | T134: quarta-feira | U134: 2010-05-12 | V134: quarta-feira
S135: 2014-01-09 | T135: quinta-feira | U135: 2010-05-13 | V135: quinta-feira
S136: 2014-01-10 | T136: sexta-feira | U136: 2010-05-14 | V136: sexta-feira
S137: 2014-01-11 | T137: sábado | U137: 2010-05-15 | V137: sábado
S138: 2014-01-12 | T138: domingo | U138: 2010-05-16 | V138: domingo
S139: 2014-01-13 | T139: segunda-feira | U139: 2010-05-17 | V139: segunda-feira
S140: 2014-01-14 | T140: terça-feira | U140: 2010-05-18 | V140: terça-feira
S141: 2014-01-15 | T141: quarta-feira | U141: 2010-05-19 | V141: quarta-feira
S142: 2014-01-16 | T142: quinta-feira | U142: 2010-05-20 | V142: quinta-feira
S143: 2014-01-17 | T143: sexta-feira | U143: 2010-05-21 | V143: sexta-feira
S144: 2014-01-18 | T144: sábado | U144: 2010-05-22 | V144: sábado
S145: 2014-01-19 | T145: domingo | U145: 2010-05-23 | V145: domingo
S146: 2014-01-20 | T146: segunda-feira | U146: 2010-05-24 | V146: segunda-feira
S147: 2014-01-21 | T147: terça-feira | U147: 2010-05-25 | V147: terça-feira
S148: 2014-01-22 | T148: quarta-feira | U148: 2010-05-26 | V148: quarta-feira
S149: 2014-01-23 | T149: quinta-feira | U149: 2010-05-27 | V149: quinta-feira
S150: 2014-01-24 | T150: sexta-feira | U150: 2010-05-28 | V150: sexta-feira
S151: 2014-01-25 | T151: sábado | U151: 2010-05-29 | V151: sábado
S152: 2014-01-26 | T152: domingo | U152: 2010-05-30 | V152: domingo
S153: 2014-01-27 | T153: segunda-feira | U153: 2010-05-31 | V153: segunda-feira
S154: 2014-01-28 | T154: terça-feira | U154: 2010-06-01 | V154: terça-feira
S155: 2014-01-29 | T155: quarta-feira | U155: 2010-06-02 | V155: quarta-feira
S156: 2014-01-30 | T156: quinta-feira | U156: 2010-06-03 | V156: quinta-feira
S157: 2014-01-31 | T157: sexta-feira | U157: 2010-06-04 | V157: sexta-feira
S158: 2014-02-01 | T158: sábado | U158: 2010-06-05 | V158: sábado
S159: 2014-02-02 | T159: =TEXT(S159,"dddd") -> domingo | U159: 2010-06-06 | V159: domingo
S160: 2014-02-03 | T160: segunda-feira | U160: 2010-06-07 | V160: segunda-feira
S161: 2014-02-04 | T161: terça-feira | U161: 2010-06-08 | V161: terça-feira
S162: 2014-02-05 | T162: quarta-feira | U162: 2010-06-09 | V162: quarta-feira
S163: 2014-02-06 | T163: quinta-feira | U163: 2010-06-10 | V163: quinta-feira
S164: 2014-02-07 | T164: sexta-feira | U164: 2010-06-11 | V164: sexta-feira
S165: 2014-02-08 | T165: sábado | U165: 2010-06-12 | V165: sábado
S166: 2014-02-09 | T166: domingo | U166: 2010-06-13 | V166: domingo
S167: 2014-02-10 | T167: segunda-feira | U167: 2010-06-14 | V167: segunda-feira
S168: 2014-02-11 | T168: terça-feira | U168: 2010-06-15 | V168: terça-feira
S169: 2014-02-12 | T169: quarta-feira | U169: 2010-06-16 | V169: =TEXT(U169,"dddd") -> quarta-feira
S170: 2014-02-13 | T170: quinta-feira | U170: 2010-06-17 | V170: quinta-feira
S171: 2014-02-14 | T171: sexta-feira | U171: 2010-06-18 | V171: sexta-feira
S172: 2014-02-15 | T172: sábado | U172: 2010-06-19 | V172: sábado
S173: 2014-02-16 | T173: domingo | U173: 2010-06-20 | V173: domingo
S174: 2014-02-17 | T174: segunda-feira | U174: 2010-06-21 | V174: segunda-feira
S175: 2014-02-18 | T175: terça-feira | U175: 2010-06-22 | V175: terça-feira
S176: 2014-02-19 | T176: quarta-feira | U176: 2010-06-23 | V176: quarta-feira
S177: 2014-02-20 | T177: quinta-feira | U177: 2010-06-24 | V177: quinta-feira
S178: 2014-02-21 | T178: sexta-feira | U178: 2010-06-25 | V178: sexta-feira
S179: 2014-02-22 | T179: sábado | U179: 2010-06-26 | V179: sábado
S180: 2014-02-23 | T180: domingo | U180: 2010-06-27 | V180: domingo
S181: 2014-02-24 | T181: segunda-feira | U181: 2010-06-28 | V181: segunda-feira
S182: 2014-02-25 | T182: terça-feira | U182: 2010-06-29 | V182: terça-feira
S183: 2014-02-26 | T183: quarta-feira | U183: 2010-06-30 | V183: quarta-feira
S184: 2014-02-27 | T184: quinta-feira | U184: 2010-07-01 | V184: quinta-feira
S185: 2014-02-28 | T185: sexta-feira | U185: 2010-07-02 | V185: sexta-feira
S186: 2014-03-01 | T186: sábado | U186: 2010-07-03 | V186: sábado
S187: 2014-03-02 | T187: domingo | U187: 2010-07-04 | V187: domingo
S188: 2014-03-03 | T188: segunda-feira | U188: 2010-07-05 | V188: segunda-feira
S189: 2014-03-04 | T189: =TEXT(S189,"dddd") -> terça-feira | U189: 2010-07-06 | V189: terça-feira
S190: 2014-03-05 | T190: quarta-feira | U190: 2010-07-07 | V190: quarta-feira
S191: 2014-03-06 | T191: quinta-feira | U191: 2010-07-08 | V191: quinta-feira
S192: 2014-03-07 | T192: sexta-feira | U192: 2010-07-09 | V192: sexta-feira
S193: 2014-03-08 | T193: sábado | U193: 2010-07-10 | V193: sábado
S194: 2014-03-09 | T194: domingo | U194: 2010-07-11 | V194: domingo
S195: 2014-03-10 | T195: segunda-feira | U195: 2010-07-12 | V195: segunda-feira
S196: 2014-03-11 | T196: terça-feira | U196: 2010-07-13 | V196: terça-feira
S197: 2014-03-12 | T197: quarta-feira | U197: 2010-07-14 | V197: quarta-feira
S198: 2014-03-13 | T198: quinta-feira | U198: 2010-07-15 | V198: quinta-feira
S199: 2014-03-14 | T199: sexta-feira | U199: 2010-07-16 | V199: sexta-feira
S200: 2014-03-15 | T200: sábado | U200: 2010-07-17 | V200: sábado
S201: 2014-03-16 | T201: =TEXT(S201,"dddd") -> domingo | U201: 2010-07-18 | V201: domingo
... 2814 more rows

Sheet AV
C2: AVISO DE FÉRIAS
C5: EMPRESA: | F5: =VLOOKUP(DADOS!G4,EMP!3:4500,2) -> Disk Automoveis Ltda | Q5: CNPJ | S5: =VLOOKUP(DADOS!G4,EMP!2:4500,15) -> 55683486000100
C7: ENDEREÇO: | F7: =VLOOKUP(DADOS!G4,EMP!3:4500,3) -> Rua da Pedras | N7: N.º | O7: =VLOOKUP(DADOS!G4,EMP!2:4500,4) -> 10 | Q7: CIDADE: | S7: =VLOOKUP(DADOS!G4,EMP!2:4500,7) -> Pres.Prudente
C10: NOME DO EMPREGADO: | G10: =VLOOKUP(DADOS!G3,FUNC!4:7209,2) -> ANGELO | H10: =VLOOKUP(H7,FUNC!1:7209,36) -> NACIONALIDADE DA MÃE | I10: =VLOOKUP(I7,FUNC!1:7209,36) -> NACIONALIDADE DA MÃE | J10: =VLOOKUP(J7,FUNC!1:7209,36) -> NACIONALIDADE DA MÃE | K10: =VLOOKUP(K7,FUNC!1:7209,36) -> NACIONALIDADE DA MÃE | L10: =VLOOKUP(L7,FUNC!1:7209,36) -> NACIONALIDADE DA MÃE | M10: =VLOOKUP(M7,FUNC!1:7209,36) -> NACIONALIDADE DA MÃE | N10: =VLOOKUP(N7,FUNC!1:7209,36) ->  | O10: =VLOOKUP(O7,FUNC!1:7209,36) -> 0 | P10: =VLOOKUP(P7,FUNC!1:7209,36) -> NACIONALIDADE DA MÃE | Q10: =VLOOKUP(Q7,FUNC!1:7209,36) ->  | R10: =VLOOKUP(R7,FUNC!1:7209,36) -> NACIONALIDADE DA MÃE | S10: =VLOOKUP(S7,FUNC!1:7209,36) ->  | T10: =VLOOKUP(T7,FUNC!1:7209,36) -> NACIONALIDADE DA MÃE | U10: =VLOOKUP(U7,FUNC!1:7209,36) -> NACIONALIDADE DA MÃE | V10: =VLOOKUP(V7,FUNC!1:7209,36) -> NACIONALIDADE DA MÃE | W10: =VLOOKUP(W7,FUNC!1:7209,36) -> NACIONALIDADE DA MÃE | X10: =VLOOKUP(X7,FUNC!1:7209,36) -> NACIONALIDADE DA MÃE
C12: CARTEIRA DE TRABALHO: | G12: =VLOOKUP(DADOS!G3,FUNC!4:7211,40) -> 55563 | Q12: SÉRIE: | S12: =VLOOKUP(DADOS!G3,FUNC!4:156,41) -> 00038/sp
C14: DEPARTAMENTO: | G14: =VLOOKUP(DADOS!G3,FUNC!3:156,87) -> adm | M14: SEÇÃO: | O14: =VLOOKUP(DADOS!G3,FUNC!3:156,88) -> contabil | S14: OUTROS
C17: Comunicamos à V. S ª, que ser-lhe-ão concedidas férias a partir do dia | N17: =IF(DADOS!$E$10=0," ",IF(DADOS!$E$10>0,DADOS!$E$10)) -> 2014-04-02 | S17: à | T17: =DADOS!I10 -> 2014-05-01
C19: , relativas ao período aquisitivo de >>>>>>>>>>>>>>>>>>>>>>>>>>> | N19: =IF(DADOS!$E$7=0," ",IF(DADOS!$E$7>0,DADOS!$E$7)) -> 2013-01-14 | S19: à | T19: =DADOS!F7 -> 2014-01-13
C21: A importância relativa as férias e o abono pecuniário, se for o caso, ficará a sua disposição a partir de | T21: =IF(DADOS!$E$13=0," ",IF(DADOS!$E$13>0,DADOS!$E$13)) -> 2014-03-28
C23: Retorno ao trabalho ...................................................................................................................................... | T23: =IF(DADOS!$E$15=0," ",IF(DADOS!$E$15>0,DADOS!$E$15)) -> 2014-05-02
C26: LOCAL: | E26: =VLOOKUP(DADOS!G4,EMP!3:168,7) -> Pres.Prudente | N26: DATA >>>>>>>>>>>>>>>> | T26: =IF(DADOS!$E$11=0," ",IF(DADOS!$E$11>0,DADOS!$E$11)) -> 2014-02-28
N29: CIENTE EM >>>>>>>>>>>>> | T29: =T26 -> 2014-02-28
E31: ASSINATURA DO EMPREGADOR
C32: Comunicar as férias com antecedência mínima de 30 dias | O32: ASSINATURA DO EMPREGADO
C33: =TB!B34 -> (FÉRIAS JANEIRO 2014) - ATUALIZADO 03/2014 - V14 (19/03/2013)
M35: Via do Empregador
C37: AVISO DE FÉRIAS
C40: EMPRESA: | F40: =F5 -> Disk Automoveis Ltda | Q40: CNPJ | S40: =S5 -> 55683486000100
C42: ENDEREÇO: | F42: =F7 -> Rua da Pedras | N42: N.º | O42: =O7 -> 10 | Q42: CIDADE: | S42: =S7 -> Pres.Prudente
C45: NOME DO EMPREGADO: | G45: =G10 -> ANGELO
C47: CARTEIRA DE TRABALHO: | G47: =G12 -> 55563 | Q47: SÉRIE: | S47: =S12 -> 00038/sp
C49: DEPARTAMENTO: | G49: =G14 -> adm | M49: SEÇÃO: | O49: =O14 -> contabil | S49: OUTROS | V49: =V14 -> 0
C52: Comunicamos à V. S ª, que ser-lhe-ão concedidas férias a partir do dia | N52: =N17 -> 2014-04-02 | S52: à | T52: =T17 -> 2014-05-01
C54: , relativas ao período aquisitivo de >>>>>>>>>>>>>>>>>>>>>>>>>>> | N54: =N19 -> 2013-01-14 | S54: à | T54: =T19 -> 2014-01-13
C56: A importância relativa as férias e o abono pecuniário, se for o caso, ficará a sua disposição a partir de | T56: =T21 -> 2014-03-28
C58: Retorno ao trabalho ...................................................................................................................................... | T58: =T23 -> 2014-05-02
C61: LOCAL: | E61: =E26 -> Pres.Prudente | N61: DATA >>>>>>>>>>>>>>>> | T61: =T26 -> 2014-02-28
N64: CIENTE EM >>>>>>>>>>>>> | T64: =T29 -> 2014-02-28
E66: ASSINATURA DO EMPREGADOR
C67: Comunicar as férias com antecedência mínima de 30 dias | O67: ASSINATURA DO EMPREGADO
C68: =TB!B34 -> (FÉRIAS JANEIRO 2014) - ATUALIZADO 03/2014 - V14 (19/03/2013)
M69: Via do Empregado

Sheet AB
C2: SOLICITAÇÃO DE FÉRIAS EM ABONO PECUNIÁRIO
C5: NOME DO EMPREGADO: | G5: =IF(DADOS!$K$3=1,AV!G10,IF(DADOS!$K$3=2," ")) -> 
C7: CARTEIRA DE TRABALHO: | G7: =IF(DADOS!$K$3=1,AV!G12,IF(DADOS!K3=2, " ")) ->  | Q7: SÉRIE: | S7: =IF(DADOS!K3=1,AV!S12,IF(DADOS!K3=2," ")) -> 
C9: DEPARTAMENTO: | G9: =IF(DADOS!K3=1,AV!G14,IF(DADOS!K3=2, " ")) ->  | M9: SEÇÃO: | O9: =IF(DADOS!K3=1,AV!O14,IF(DADOS!K3=2, " ")) ->  | S9: OUTROS | V9: =IF(DADOS!K3=1,AV!V14,IF(DADOS!K3=2," " )) -> 
C12: EMPRESA: | F12: =IF(DADOS!K3=1,AV!F5,IF(DADOS!K3=2," ")) ->  | Q12: CNPJ | S12: =IF(DADOS!K3=1,AV!S5,IF(DADOS!K3=2," ")) -> 
C14: ENDEREÇO: | F14: =IF(DADOS!K3=1,AV!F7,IF(DADOS!K3=2," ")) ->  | N14: N.º | O14: =IF(DADOS!K3=1,AV!O7,IF(DADOS!K3=2," ")) ->  | Q14: CIDADE: | S14: =IF(DADOS!K3=1,AV!S7,IF(DADOS!K3=2," ")) -> 
C17: O abaixo assinado requer a concessão do abono pecuniário de 1/3 de
C19: suas férias, referente ao período aquisitivo de >>>>>>>>>>>>>>>>>>> | N19: =IF(DADOS!$K$3=2," ",IF(DADOS!$K$3=1,DADOS!$E$7)) ->  | S19: à | T19: =IF(DADOS!$K$3=2," ",IF(DADOS!$K$3=1,DADOS!$F$7)) -> 
C21: conforme faculta o Art. 143 da CLT - Consolidação das Leis do Trabalho.
C24: PERÍODO DO ABONO PECUNIÁRIO >>>>>>>>>>>>>>>>>>>>>>>>>>>>> | N24: =IF(DADOS!$G$9=0," ",IF(DADOS!$G$9>0,DADOS!$G$9)) ->  | T24: =IF(DADOS!$I$9=0," ",IF(DADOS!$I$9>0,DADOS!$I$9)) -> 
C27: LOCAL: | E27: =IF(DADOS!K3=1,AV!E26,IF(DADOS!K3=2," ")) ->  | N27: DATA >>>>>>>>>>>>>>>> | T27: =IF(DADOS!$E$16=0," ",IF(DADOS!$E$16>0,DADOS!$E$16)) -> 
N30: CIENTE EM >>>>>>>>>>>>> | T30: =IF(DADOS!$E$16=0," ",IF(DADOS!$E$16>0,DADOS!$E$16)) -> 
E32: ASSINATURA DO EMPREGADO
C33: Deverá ser solicitado 15 dias antes do término do período aquisitivo | O33: ASSINATURA DO EMPREGADOR
C34: =TB!B34 -> (FÉRIAS JANEIRO 2014) - ATUALIZADO 03/2014 - V14 (19/03/2013)
M35: =AV!M35 -> Via do Empregador
C37: SOLICITAÇÃO DE FÉRIAS EM ABONO PECUNIÁRIO
C40: NOME DO EMPREGADO: | G40: =G5 -> 
C42: CARTEIRA DE TRABALHO: | G42: =G7 ->  | Q42: SÉRIE: | S42: =S7 -> 
C44: DEPARTAMENTO: | G44: =G9 ->  | M44: SEÇÃO: | O44: =O9 ->  | S44: OUTROS | V44: =V9 -> 
C47: EMPRESA: | F47: =F12 ->  | Q47: CNPJ | S47: =S12 -> 
C49: ENDEREÇO: | F49: =F14 ->  | N49: N.º | O49: =O14 ->  | Q49: CIDADE: | S49: =S14 -> 
C52: O abaixo assinado requer a concessão do abono pecuniário de 1/3 de
C54: suas férias, referente ao período aquisitivo de >>>>>>>>>>>>>>>>>>> | N54: =N19 ->  | S54: à | T54: =T19 -> 
C56: conforme faculta o Art. 143 da CLT - Consolidação das Leis do Trabalho.
C59: PERÍODO DO ABONO PECUNIÁRIO >>>>>>>>>>>>>>>>>>>>>>>>>>>>> | N59: =IF(DADOS!$G$9=0," ",IF(DADOS!$G$9>0,DADOS!$G$9)) ->  | S59: à | T59: =IF(DADOS!$I$9=0," ",IF(DADOS!$I$9>0,DADOS!$I$9)) -> 
C62: LOCAL: | E62: =E27 ->  | N62: DATA >>>>>>>>>>>>>>>> | T62: =IF(DADOS!$E$16=0," ",IF(DADOS!$E$16>0,DADOS!$E$16)) -> 
N65: CIENTE EM >>>>>>>>>>>>> | T65: =IF(DADOS!$E$16=0," ",IF(DADOS!$E$16>0,DADOS!$E$16)) -> 
E67: ASSINATURA DO EMPREGADO
C68: Deverá ser solicitado 15 dias antes do término do período aquisitivo | O68: ASSINATURA DO EMPREGADOR
C69: =TB!B34 -> (FÉRIAS JANEIRO 2014) - ATUALIZADO 03/2014 - V14 (19/03/2013)
M70: =AV!M69 -> Via do Empregado

Sheet 13°SAL
C2: SOLICITAÇÃO DA 1ª PARCELA DO 13° SALÁRIO
C5: NOME DO EMPREGADO: | G5: =AV!G10 -> ANGELO
C7: CARTEIRA DE TRABALHO: | G7: =AV!G12 -> 55563 | Q7: SÉRIE: | S7: =AV!S12 -> 00038/sp
C9: DEPARTAMENTO: | G9: =AV!G14 -> adm | M9: SEÇÃO: | O9: =AV!O14 -> contabil | S9: OUTROS | V9: =AV!V14 -> 0
C12: EMPRESA: | F12: =AV!F5 -> Disk Automoveis Ltda | Q12: CNPJ | S12: =AV!S5 -> 55683486000100
C14: ENDEREÇO: | F14: =AV!F7 -> Rua da Pedras | N14: N.º | O14: =AV!O7 -> 10 | Q14: CIDADE: | S14: =AV!S7 -> Pres.Prudente
C17: Prezados Senhores
C19: Nos temos da legislação vigente, solicito o pagamento da 1ª parcela do 13° salário, por ocasião do gozo de minhas férias
C21: Solicito apor o seu ciente na cópia desta.
C27: LOCAL: | E27: =AV!E26 -> Pres.Prudente | N27: DATA >>>>>>>>>>>>>>>> | T27: =IF(DADOS!$E$18=0," ",IF(DADOS!$E$18>0,DADOS!$E$18)) -> 
N30: CIENTE EM >>>>>>>>>>>>> | T30: =IF(DADOS!$E$18=0," ",IF(DADOS!$E$18>0,DADOS!$E$18)) -> 
E32: ASSINATURA DO EMPREGADO
C33: Requer sempre no mês de Janeiro. | O33: ASSINATURA DO EMPREGADOR
C34: =TB!B34 -> (FÉRIAS JANEIRO 2014) - ATUALIZADO 03/2014 - V14 (19/03/2013)
M35: =AV!M35 -> Via do Empregador
C37: SOLICITAÇÃO DA 1ª PARCELA DO 13° SALÁRIO
C40: NOME DO EMPREGADO: | G40: =G5 -> ANGELO
C42: CARTEIRA DE TRABALHO: | G42: =G7 -> 55563 | Q42: SÉRIE: | S42: =S7 -> 00038/sp
C44: DEPARTAMENTO: | G44: =G9 -> adm | M44: SEÇÃO: | O44: =O9 -> contabil | S44: OUTROS | V44: =V9 -> 0
C47: EMPRESA: | F47: =F12 -> Disk Automoveis Ltda | Q47: CNPJ | S47: =S12 -> 55683486000100
C49: ENDEREÇO: | F49: =F14 -> Rua da Pedras | N49: N.º | O49: =O14 -> 10 | Q49: CIDADE: | S49: =S14 -> Pres.Prudente
C52: Prezados Senhores
C54: Nos temos da legislação vigente, solicito o pagamento da 1ª parcela do 13° salário, por ocasião do gozo de minhas férias
C56: Solicito apor o seu ciente na cópia desta.
C62: LOCAL: | E62: =E27 -> Pres.Prudente | N62: DATA >>>>>>>>>>>>>>>> | T62: =IF(DADOS!$E$18=0," ",IF(DADOS!$E$18>0,DADOS!$E$18)) -> 
N65: CIENTE EM >>>>>>>>>>>>> | T65: =IF(DADOS!$E$18=0," ",IF(DADOS!$E$18>0,DADOS!$E$18)) -> 
E67: ASSINATURA DO EMPREGADO
C68: Requer sempre no mês de Janeiro. | O68: ASSINATURA DO EMPREGADOR
C69: =TB!B34 -> (FÉRIAS JANEIRO 2014) - ATUALIZADO 03/2014 - V14 (19/03/2013)
M70: =AV!M69 -> Via do Empregado

Sheet RECIBO
B1: RECIBO DE FÉRIAS
B4: EMPRESA: | D4: =AV!F5 -> Disk Automoveis Ltda | X4: CNPJ | Y4: =AV!S5 -> 55683486000100
B6: ENDEREÇO: | D6: =AV!F7 -> Rua da Pedras | S6: Nº | T6: =AV!O7 -> 10 | W6: CIDADE | Y6: =AV!S7 -> Pres.Prudente
B10: NOME DO EMPREGADO: | H10: =AV!G10 -> ANGELO
B12: CARTEIRA DE TRABALHO: | H12: =AV!G12 -> 55563 | X12: SÉRIE | Y12: =AV!S12 -> 00038/sp
B14: DEPARTAMENTO: | G14: =AV!G14 -> adm | N14: SEÇÃO: | P14: =AV!O14 -> contabil | X14: OUTROS | Z14: =AV!V14 -> 0
B18: PERÍODO AQUISITIVO DE | H18: =IF(DADOS!$E$7=0," ",IF(DADOS!$E$7>0,DADOS!$E$7)) -> 2013-01-14 | P18: À | Q18: =IF(DADOS!$F$7=0," ",IF(DADOS!$F$7>0,DADOS!$F$7)) -> 2014-01-13 | Y18: .
B20: PERÍODO DE GOZO DE | H20: =IF(DADOS!$E$10=0," ",IF(DADOS!$E$10>0,DADOS!$E$10)) -> 2014-04-02 | P20: À | Q20: =DADOS!I10 -> 2014-05-01 | Y20: . ( DIAS GOZADOS | AB20: =DADOS!E8 -> 30 | AC20: )
B22: PERÍODO DO ABONO DE | H22: =IF(DADOS!$G$9=0," ",IF(DADOS!$G$9>0,DADOS!$G$9)) ->  | P22: À | Q22: =IF(DADOS!$I$9=0," ",IF(DADOS!$I$9>0,DADOS!$I$9)) ->  | Y22: . ( DIAS ABONO | AB22: =DADOS!E9 -> 0 | AC22: )
B26: FALTAS NÃO JUSTIFIC. | G26: SALÁRIO-FIXO | J26: MÉDIA COMISSÃO | O26: MÉDIA HORA-EXTRA | S26: MÉDIA ADIC. | W26: FGTS | Z26: BASE CÁLCULO DAS FÉRIAS
B27: =DADOS!I8 -> 0 | G27: =VLOOKUP(DADOS!$G$3,FUNC!A3:IF156,89) -> 1000 | J27: =DADOS!E6 -> 0 | O27: =DADOS!I5 -> 0 | S27: =DADOS!I6 -> 0 | W27: =DADOS!P28*8% -> 106.67 | Z27: =SUM(G27:V27) -> 1000
B28: DEMONSTRATIVO DO CÁLCULO DAS FÉRIAS | AF28: FIXO | AG28: VARIAVEL | AH28: =Z27/30*(AB20+AB22) -> 1000 | AI28: =AH28/3 -> 333.33
B29: =IF(Z29>0,"FÉRIAS GOZADAS (fixo)",IF(Z29=0,0)) -> FÉRIAS GOZADAS (fixo) | Y29: R$ | Z29: =AF29 -> 1000 | AF29: =$G$27/TB!$F$33*AB20 -> 1000 | AG29: =($J$27+O27+S27)/TB!$F$33*AB20 -> 0 | AH29: =AF29+AG29 -> 1000
B30: =IF(Z30>0,"ADICIONAL DE 1/3 DE FÉRIAS GOZADAS (fixo)",IF(Z30=0,0)) -> ADICIONAL DE 1/3 DE FÉRIAS GOZADAS (fixo) | Y30: R$ | Z30: =AF30 -> 333.33 | AF30: =AF29/3 -> 333.33 | AG30: =AG29/3 -> 0 | AH30: =AF30+AG30 -> 333.33
B31: =IF(Z31>0,"ABONO PECUNIÁRIO DE FÉRIAS (fixo)",IF(Z31=0,0)) -> 0 | Y31: R$ | Z31: =AF31 -> 0 | AF31: =$G$27/TB!$F$33*AB22 -> 0 | AG31: =($J$27+O27+S27)/TB!$F$33*AB22 -> 0 | AH31: =AF31+AG31 -> 0
B32: =IF(Z32>0,"ADICIONAL DE 1/3 DO ABONO PECUNIÁRIO DE FÉRIAS (fixo)",IF(Z32=0,0)) -> 0 | Y32: R$ | Z32: =AF32 -> 0 | AF32: =AF31/3 -> 0 | AG32: =AG31/3 -> 0 | AH32: =AF32+AG32 -> 0
B33: =IF(Z33>0,"FÉRIAS GOZADAS (variável)",IF(Z33=0,0)) -> 0 | Y33: R$ | Z33: =AG29 -> 0
B34: =IF(Z34>0,"ADICIONAL DE 1/3 DE FÉRIAS GOZADAS (variável)",IF(Z34=0,0)) -> 0 | Y34: R$ | Z34: =AG30 -> 0
B35: =IF(Z35>0,"ABONO PECUNIÁRIO DE FÉRIAS (variável)",IF(Z35=0,0)) -> 0 | Y35: R$ | Z35: =AG31 -> 0
B36: =IF(Z36>0,"ADICIONAL DE 1/3 DO ABONO PECUNIÁRIO DE FÉRIAS (vaariável)",IF(Z36=0,0)) -> 0 | Y36: R$ | Z36: =AG32 -> 0
B37: =IF(Z37>0,"ADIANTAMENTO 50% (PRIMEIRA PARCELA DO 13º SALÁRIO)",IF(Z37=0,0)) -> 0 | Y37: R$ | Z37: =DADOS!F23 -> 0
B38: =IF(Z38>0,DADOS!A26,IF(RECIBO!Z38=0,0)) -> 0 | Y38: R$ | Z38: =DADOS!F26 -> 0
B39: =IF(Z39>0,DADOS!A24&DADOS!A25,IF(Z39=0,0)) -> 0 | Y39: R$ | Z39: =DADOS!F24+DADOS!F25 -> 0
P40: VALOR BRUTO DAS FÉRIAS | Y40: R$ | Z40: =SUM(Z29:AC39) -> 1333.33
B42: DESCONTOS
B43: INSS | P43: R$ | Q43: =AD43 -> 120 | AD43: =VLOOKUP(DADOS!$L$29,TB!$C$10:$G$13,4)*DADOS!$L$29 -> 120
B44: IMPOSTO DE RENDA | H44: =VLOOKUP(DADOS!$G$3,FUNC!A3:IG169,5) -> 2 | I44: =IF(H44>0,"DEPENDENTES",IF(H44=0," ")) -> DEPENDENTES | P44: R$ | Q44: =IF(AD44<TB!G30,TB!F24,IF(AD44>=TB!G30,AD44)) -> 0 | AD44: =DADOS!N31*RECIBO!AF44-AG44 -> 0 | AF44: =VLOOKUP(DADOS!N31,TB!C24:F28,4) -> 0 | AG44: =VLOOKUP(AF44,TB!F24:G28,2) -> 0
B45: =IF(Q45>0,DADOS!A29,IF(Q45=0,0)) -> 0 | P45: R$ | Q45: =DADOS!F29 -> 0
B46: =IF(Q46>0,DADOS!A30,IF(Q46=0,0)) -> 0 | P46: R$ | Q46: =DADOS!F30 -> 0
B47: =IF(Q47>0,DADOS!A31,IF(Q47=0,0)) -> 0 | P47: R$ | Q47: =DADOS!F31 -> 0
B48: =IF(Q48>0,DADOS!A32,IF(Q48=0,0)) -> 0 | P48: R$ | Q48: =DADOS!F32 -> 0
P49: SOMA | Y49: R$ | Z49: =SUM(Q43:X48) -> 120
P50: VALOR LIQUIDO DAS FÉRIAS | Y50: R$ | Z50: =Z40-Z49 -> 1213.33
B53: Recebi da Firma: | F53: =D4 -> Disk Automoveis Ltda | T53: , à importância de | Y53: R$ | Z53: =Z50 -> 1213.33 | AC53: (
B54: =fextenso(Z53,1/3,"real","reais") -> um mil duzentos e treze reais e trinta e três centavos | AC54: )
B55: paga antecipadamente por motivo das minhas férias regulamentares, ora concedidas e que vou gozar de acordo com a descrição acima, tudo conforme o aviso que recebi em tempo, ao qual dei meu "ciente".
B57: Pela clareza, firmo o presente dando plena e geral quitação.
B60: =AV!E26 -> Pres.Prudente | H60: =IF(DADOS!$E$13=0," ",IF(DADOS!$E$13>0,DADOS!$E$13)) -> 2014-03-28
B61: LOCAL E DATA | T61: ASSINATURA DO EMPREGADO
B62: OBS:- O empregado deverá dar quitado do recibo de férias, pelo menos 2 (dois) dias antes do período de gozo de férias
C63: =TB!B34 -> (FÉRIAS JANEIRO 2014) - ATUALIZADO 03/2014 - V14 (19/03/2013)

Sheet DEMONSTRATIVO
B2: DEMONSTRATIVO DO CÁLCULO DAS FÉRIAS
B4: EMPRESA: | D4: =AV!F5 -> Disk Automoveis Ltda | X4: CNPJ | Y4: =AV!S5 -> 55683486000100
B6: ENDEREÇO: | D6: =AV!F7 -> Rua da Pedras | S6: Nº | T6: =AV!O7 -> 10 | W6: CIDADE | Y6: =AV!S7 -> Pres.Prudente
B8: NOME DO EMPREGADO: | H8: =AV!G10 -> ANGELO
B10: CARTEIRA DE TRABALHO: | H10: =AV!G12 -> 55563 | X10: SÉRIE | Y10: =AV!S12 -> 00038/sp
B12: DEPARTAMENTO: | G12: =AV!G14 -> adm | N12: SEÇÃO: | P12: =AV!O14 -> contabil | X12: OUTROS | Z12: =AV!V14 -> 0
B14: PERÍODO AQUISITIVO DE | H14: =IF(DADOS!$E$7=0," ",IF(DADOS!$E$7>0,DADOS!$E$7)) -> 2013-01-14 | P14: À | Q14: =IF(DADOS!$F$7=0," ",IF(DADOS!$F$7>0,DADOS!$F$7)) -> 2014-01-13 | Y14: .
B16: PERÍODO DE GOZO DE | H16: =IF(DADOS!$E$10="",0,IF(DADOS!$E$10>0,DADOS!$E$10)) -> 2014-04-02 | P16: À | Q16: =IF(DADOS!$I$10=" ",0,IF(DADOS!$I$10>0,DADOS!$I$10)) -> 2014-05-01 | Y16: . ( DIAS GOZADOS | AB16: =DADOS!E8 -> 30 | AC16: ) | AF16: =DADOS!AB10 -> 30 | AG16: =IF(AF25=2,DAY(Q16),0) -> 1 | AH16: =AF16-AG16 -> 29
B18: PERÍODO DO ABONO DE | H18: =IF(DADOS!$G$9=" ",0,IF(DADOS!$G$9>0,DADOS!$G$9)) -> 00:00:00 | P18: À | Q18: =IF(DADOS!$I$9=" ",0,IF(DADOS!$I$9>0,DADOS!$I$9)) -> 00:00:00 | Y18: . ( DIAS ABONO | AB18: =DADOS!E9 -> 0 | AC18: ) | AF18: =DADOS!AB9 -> 0 | AG18: =IF(AF36=4,DAY(Q18),0) -> 0 | AH18: =AF18-AG18 -> 0
B21: FALTAS NÃO JUSTIFIC. | G21: SALÁRIO-FIXO | J21: MÉDIA COMISSÃO | O21: MÉDIA H.-EXTRA | S21: MÉDIA ADIC. | W21: FGTS | Z21: B. CÁLC. DAS FÉRIAS
B22: =DADOS!I8 -> 0 | G22: =VLOOKUP(DADOS!$G$3,FUNC!A3:IF156,89) -> 1000 | J22: =DADOS!E6 -> 0 | O22: =DADOS!I5 -> 0 | S22: =DADOS!I6 -> 0 | W22: =DADOS!P28*8% -> 106.67 | Z22: =SUM(G22:V22) -> 1000
O23: MÊS OU MESES | Z23: Soma total das férias | AF23: =MONTH(AF24) -> 4 | AG23: =MONTH(AG24) -> 5
B24: DADOS DA FOLHA DE PAGAMENTO | O24: =MONTH(P24) -> 4 | P24: =H16 -> 2014-04-02 | T24: =MONTH(V24) -> 5 | V24: =Q16 -> 2014-05-01 | AF24: =P24 -> 2014-04-02 | AG24: =V24 -> 2014-05-01
B25: FÉRIAS GOZADAS (fixo) | O25: =AH16 -> 29 | P25: =RECIBO!AF29/RECIBO!AB20*O25 -> 966.67 | T25: =AG16 -> 1 | V25: =Z25-P25 -> 33.33 | Z25: =RECIBO!AF29 -> 1000 | AF25: =IF(O24=T24,1,IF(O24<>T24,2)) -> 2
B26: ADIC. 1/3 FÉRIAS GOZADAS (fixo) | P26: =P25/3 -> 322.22 | T26: =AG15 -> 0 | V26: =Z26-P26 -> 11.11 | Z26: =RECIBO!AF30 -> 333.33
B27: FÉRIAS GOZADAS (variável) | O27: =AH16 -> 29 | P27: =RECIBO!AG29/RECIBO!AB20*O27 -> 0 | T27: =AG16 -> 1 | V27: =Z27-P27 -> 0 | Z27: =RECIBO!AG29 -> 0
B28: ADIC. 1/3 FÉRIAS GOZADAS (variável) | P28: =P27/3 -> 0 | V28: =Z28-P28 -> 0 | Z28: =RECIBO!AG30 -> 0 | AF28: =SUM(AF25+AF36) -> 5
B29: =RECIBO!B37 -> 0 | P29: =Z29 -> 0 | Z29: =RECIBO!Z37 -> 0 | AF29: =IF(AF34=AG34,1,IF(AF34<>AG34,2)) -> 1
B30: =RECIBO!B39 -> 0 | P30: =Z30 -> 0 | Z30: =RECIBO!Z39 -> 0
B31: =IF(DADOS!A26=0," ",IF(DADOS!A26>0,DADOS!A26)) ->  | O31: =IF(B31=0,0,IF(B31>0,O25)) -> 29 | P31: =RECIBO!Z38/RECIBO!AB20*O31 -> 0 | V31: =IF(B31=" "," ",IF(B31=0,"",IF(B31>0,Z31-P31))) -> 0 | Z31: =RECIBO!Z38 -> 0
B32: SUB-TOTAL (1) | P32: =SUM(P25:S31) -> 1288.89 | V32: =SUM(V25:X31) -> 44.44 | Z32: =SUM(Z25:AC31) -> 1333.33
B33: DADOS DA FOLHA DE PAGAMENTO | O33: =IF(P33=0,0,IF(P33>0,MONTH(P33))) -> 0 | P33: =AF33 -> 00:00:00 | T33: =IF(V33=0,0,IF(V33>0,MONTH(V33))) -> 0 | V33: =AG33 -> 00:00:00 | AF33: =$H$18 -> 00:00:00 | AG33: =$Q$18 -> 00:00:00
B34: ABONO PECUNIÁRIO DE FÉRIAS (fixo) | O34: =AF18 -> 0 | P34: =IF(O34<=0,0,IF(O34>0,RECIBO!AF31/RECIBO!AB22*O34)) -> 0 | T34: 0 | V34: =G22/30*T34 -> 0 | Z34: =RECIBO!AF31 -> 0 | AF34: =MONTH(H18) -> 1 | AG34: =MONTH(AG33) -> 1
B35: ADIC. DE 1/3 DO AB. PEC. DE FÉRIAS (fixo) | P35: =P34/3 -> 0 | V35: =V34/3 -> 0 | Z35: =RECIBO!AF32 -> 0
B36: ABONO PECUNIÁRIO DE FÉRIAS (Váriável) | O36: =AF18 -> 0 | P36: =IF(O36<=0,0,IF(O36>0,RECIBO!AG31/RECIBO!AB22*O36)) -> 0 | T36: 0 | V36: =(J22+O22+S22)/30*T36 -> 0 | Z36: =RECIBO!AG31 -> 0 | AF36: =IF(AF34=AG34,3,IF(AF34<>AG34,4)) -> 3
B37: ADIC. DE 1/3 DO AB. PEC. DE FÉRIAS (variável) | P37: =P36/3 -> 0 | V37: =V36/3 -> 0 | Z37: =RECIBO!AG32 -> 0
B39: SUB-TOTAL (2) | P39: =SUM(P34:S38) -> 0 | V39: =SUM(V34:X38) -> 0 | Z39: =SUM(Z34:AC38) -> 0
B40: TOTAL BRUTO PARA FOLHA | P40: =SUM(P25:S31)+SUM(P34:S37) -> 1288.89 | V40: =V32+V39 -> 44.44 | Z40: =Z32+Z39 -> 1333.33
B41: 666
B42: DESCONTO DO INSS | O42: =O25 -> 29 | P42: =IF(AF16>0,RECIBO!Q43/AF16*O42,IF(AF16=0,0)) -> 116 | T42: =T25 -> 1 | V42: =IF(AF16>0,RECIBO!Q43-P42,IF(AF16=0,0)) -> 4 | Z42: =P42+V42 -> 120
B43: DESCONTO DO IMPOSTO DE RENDA | O43: =AF16 -> 30 | P43: =IF(AF16>0,RECIBO!Q44/AF16*O43,IF(AF16=0,0)) -> 0 | T43: 0 | V43: =IF(AF16>0,RECIBO!Q44-P43,IF(AF16=0,0)) -> 0 | Z43: =P43+V43 -> 0
B44: =IF(DADOS!F29=0," ",IF(DADOS!F29>0,DADOS!A29)) ->  | O44: =AF16 -> 30 | P44: =IF(Z44=" "," ",IF(Z44=0,0,IF(Z44>0,Z44/$AF$16*O44))) -> 0 | T44: 0 | U44: =IF(H44=" "," ",IF(H44>0,$O$25)) -> FALSE | V44: =IF(P44=0,0,IF(P44=" "," ",IF(P44>0,Z44-P44))) -> 0 | Z44: =DADOS!F29 -> 0
B45: =IF(DADOS!F30=0," ",IF(DADOS!F30>0,DADOS!A30)) ->  | O45: =AF16 -> 30 | P45: =IF(Z45=" "," ",IF(Z45=0,0,IF(Z45>0,Z45/$AF$16*O45))) -> 0 | T45: 0 | U45: =IF(H45=" "," ",IF(H45>0,$O$25)) -> FALSE | V45: =IF(P45=0,0,IF(P45=" "," ",IF(P45>0,Z45-P45))) -> 0 | Z45: =DADOS!F30 -> 0
B46: =IF(DADOS!F31=0," ",IF(DADOS!F31>0,DADOS!A31)) ->  | O46: =AF16 -> 30 | P46: =IF(Z46=" "," ",IF(Z46=0,0,IF(Z46>0,Z46/$AF$16*O46))) -> 0 | T46: 0 | U46: =IF(H46=" "," ",IF(H46>0,$O$25)) -> FALSE | V46: =IF(P46=0,0,IF(P46=" "," ",IF(P46>0,Z46-P46))) -> 0 | Z46: =DADOS!F31 -> 0
B47: =IF(DADOS!F32=0," ",IF(DADOS!F32>0,DADOS!A32)) ->  | O47: =AF16 -> 30 | P47: =IF(Z47=" "," ",IF(Z47=0,0,IF(Z47>0,Z47/$AF$16*O47))) -> 0 | T47: 0 | U47: =IF(H47=" "," ",IF(H47>0,$O$25)) -> FALSE | V47: =IF(P47=0,0,IF(P47=" "," ",IF(P47>0,Z47-P47))) -> 0 | Z47: =RECIBO!Q48 -> 0
B48: TOTAL DOS DESCONTOS | P48: =P42+P43+P44+P45+P46+P47 -> 116 | V48: =V42+V43+V44+V45+V46+V47 -> 4 | Z48: =P48+V48 -> 120
B50: VALOR LIQUIDO DAS FÉRIAS | O50: =IF(AF28=5,Z50-T50,IF(AF28=4,Z50-T50)) -> 1172.89 | T50: =IF(AF29=2,AF50-P39,IF(AF29=1,AF50)) -> 40.44 | Z50: =Z33+Z40-Z42-Z43-Z44-Z45-Z46-Z47 -> 1213.33 | AF50: =IF($AF$28=4,0,IF($AF$28=5,$V$32+$P$39+$V$39-$V$48)) -> 40.44
O51: =O50+T50 -> 1213.33
C54: =TB!B34 -> (FÉRIAS JANEIRO 2014) - ATUALIZADO 03/2014 - V14 (19/03/2013)

Sheet HOLLERITH (1)
B1: NOME FUNCIONÁRIO | E1: =VLOOKUP(DADOS!G3,FUNC!4:7209,2) -> ANGELO
B2: MÊS/ANO | C2: ADMISSÃO | E2: NOME DA EMPRESA/DONO DA RESIDÊNCIA | U2: 2 | AF2: =IF(AG2+AH2=0,0) -> FALSE | AG2: =IF($AG$4=$AG$6,0,IF($AG$4<>$AG$6,1)) -> 1 | AH2: =IF($AH$4=$AH$6,0,IF($AH$4<>$AH$6,1)) -> 1
B3: =DEMONSTRATIVO!P24 -> 2014-04-02 | C3: =VLOOKUP(DADOS!G3,FUNC!4:156,83) -> 2010-02-01 | E3: =VLOOKUP(DADOS!G4,EMP!3:4500,2) -> Disk Automoveis Ltda | V3: T.MAXIMO | AD3: DIAS SFAMILIA | AF3: =IF(AF2=0,AG11-AF64,IF(AF2>0,AG11)) -> 30
B4: CBO | C4: =VLOOKUP(DADOS!G3,FUNC!4:7211,86) -> 4115-10 | E4: CTPS | F4: =RECIBO!H12 -> 55563 | G4: SÉRIE | H4: =RECIBO!Y12 -> 00038/sp | AD4: dias do salario | AF4: =IF(AF2=0,30-AF6+1,IF(AF2>0,30)) -> 30 | AG4: =MONTH(B3) -> 4 | AH4: =YEAR(B3) -> 2014 | AK4: 2007-02-28
B5: 1900-01-05 | D5: =RECIBO!G27 -> 1000 | F5: FUNÇÃO | G5: ='HOLLERITH (2)'!G5:J5 -> contador | K5: SALÁRIO-FAMILIA | O5: =VLOOKUP(DADOS!$G$3,FUNC!A3:IG169,4) -> 1 | P5: Nº DEP. IRRF | R5: =RECIBO!H44 -> 2 | AD5: DIAS DE SALÁRIO (-) DIAS FÉRIAS | AF5: =(AF4-D12) -> 1 | AK5: 2008-02-29
B6: CÁLCULO DO HOLLERITH DO FUNCIONÁRIO | K6: PROVENTOS | O6: TABELA DO INSS | R6: Usando o botão "limpar valores digitados" você evita o erro #VALOR! Dentro do hollerith. | V6: =P9*Q9 -> 482.93 | AD6: admissão | AF6: =DAY(C3) -> 1 | AG6: =MONTH(C3) -> 2 | AH6: =YEAR(C3) -> 2010 | AK6: 2009-02-28
B7: PROVENTOS | E7: R$ | F7: DESCONTOS | J7: R$ | K7: INSS | L7: FGTS | M7: IRRF | N7: VT | O7: 0 | P7: 1317.07 | Q7: 0.08 | S7: VT | T7: VT | U7: INSS | V7: INSS/sal | W7: INSS/FÉRIAS | X7: INSS/13° SAL | Y7: FGTS | Z7: FGTS(SAL.FERIAS) | AA7: FGTS(13º SAL | AB7: IRRF | AC7: IRRF S/SAL | AD7: IRRF S/FÉRIAS | AE7: IRRF S/13° SAL | AK7: 2010-02-28
B8: SALÁRIO MENSAL | D8: =IF(AF4=31,0,IF(AF4<>31,AF4-D12)) -> 1 | E8: =IF(U2=2,D5/30*D8,IF(U2=1,0,IF(U2=3,0))) -> 33.33 | F8: INSS S/ SALÁRIO | H8: =VLOOKUP($V$29,$O$7:$Q$9,3) -> 0.09 | I8: =IF(V29+W29=0,0,IF(V29+W29>0,H8)) -> 0.09 | J8: =IF($V$29>$P$9,$P$9*$I$8,IF($V$29<$P$9,$V$29*$I$8))-J9 -> 3 | O8: =P7+0.01 -> 1317.08 | P8: 2195.12 | Q8: 0.09 | S8: TRUE | T8: =IF(S8=TRUE,E8,IF(S8=FALSE,0)) -> 33.33 | U8: TRUE | V8: =IF(U8=TRUE,E8,IF(U8=FALSE,0)) -> 33.33 | Y8: TRUE | Z8: =IF(Y8=TRUE,E8,IF(Y8=FALSE,0)) -> 33.33 | AB8: TRUE | AC8: =IF(AB8=TRUE,E8,IF(AB8=FALSE,0)) -> 33.33 | AK8: 2011-02-28
F9: INSS S/ FÉRIAS | J9: =DEMONSTRATIVO!P42 -> 116 | O9: =P8+0.01 -> 2195.13 | P9: 4390.24 | Q9: 0.11 | S9: FALSE | T9: =IF(S9=TRUE,E9,IF(S9=FALSE,0)) -> 0 | U9: TRUE | V9: =IF(U9=TRUE,E9,IF(U9=FALSE,0)) -> 0 | Y9: TRUE | Z9: 0 | AB9: TRUE | AC9: =IF(AB9=TRUE,E9,IF(AB9=FALSE,0)) -> 0 | AF9: =MONTH(B3)&"/"&YEAR(B3) -> 4/2014 | AK9: 2012-02-29 | AL9: =IF(AF9="2/2007",28,IF(AF9="2/2008",29,IF(AF9="2/2009",28,IF(AF9="2/2010",28,IF(AF9="2/2011",28,IF(AF9="2/2012",29,AM9)))))) -> FALSE | AM9: =IF(AF9="2/2013",28,IF(AF9="2/2014",28,IF(AF9="2/2015",28,IF(AF9="2/2016",29,IF(AF9="2/2017",28,IF(AF9="2/2018",28,IF(AF9="2/2019",28,AN9))))))) -> FALSE | AN9: =IF(AF9="2/2020",29,IF(AF9="2/2021",28,IF(AF9="2/2022",28,IF(AF9="2/2023",28,IF(AF9="2/2024",29))))) -> FALSE
F10: INSS S/ 13° SALÁRIO | H10: =VLOOKUP($X$29,$O$7:$Q$9,3) -> 0.08 | I10: =IF(X29=0,0,IF(X29>0,H10)) -> 0 | J10: =IF($X$29>$P$9,$P$9*$I$10,IF($X$29<$P$9,$X$29*$I$10)) -> 0 | S10: FALSE | T10: =IF(S10=TRUE,E10,IF(S10=FALSE,0)) -> 0 | U10: TRUE | V10: =IF(U10=TRUE,E10,IF(U10=FALSE,0)) -> 0 | Y10: TRUE | Z10: 0 | AB10: TRUE | AC10: =IF(AB10=TRUE,E10,IF(AB10=FALSE,0)) -> 0 | AG10: 30 | AK10: 2013-02-28
F11: IRRF S/ SALÁRIO | H11: =VLOOKUP($G$33,$O$22:$Q$26,3) -> 0 | I11: =VLOOKUP($G$33,$O$22:$Q$26,3) -> 0 | J11: =IF(G33*I11-U32<R29,0,IF(G33*I11-U32>=R29,G33*I11-U32)) -> 0 | O11: TABELA DO SALÁRIIO-FAMÍLIA | T11: =IF(S11=TRUE,E11,IF(S11=FALSE,0)) -> 0 | U11: TRUE | V11: =IF(U11=TRUE,E11,IF(U11=FALSE,0)) -> 0 | Y11: TRUE | Z11: 0 | AB11: TRUE | AC11: =IF(AB11=TRUE,E11,IF(AB11=FALSE,0)) -> 0 | AG11: =VLOOKUP(AG4,AG12:AH38,2) -> 30 | AK11: 2014-02-28
B12: FÉRIAS GOZADAS | D12: =DEMONSTRATIVO!O25 -> 29 | E12: =DEMONSTRATIVO!P25 -> 966.67 | F12: IRRF S/ FÉRIAS | J12: =DEMONSTRATIVO!P43 -> 0 | O12: 0 | P12: 682.5 | Q12: 35 | S12: FALSE | U12: TRUE | V12: =IF($U$12=TRUE,E12,IF($U$12=FALSE,0)) -> 966.67 | Y12: TRUE | Z12: 966.67 | AB12: TRUE | AC12: 0 | AD12: =IF($AB$12=TRUE,$E$12,IF($AB$12=FALSE,0)) -> 966.67 | AG12: 1 | AH12: 31 | AK12: 2015-02-28
B13: FÉRIAS GOZADAS VARIÁVEL | E13: =DEMONSTRATIVO!P27 -> 0 | F13: ADIANTAMENTO DE FÉRIAS | J13: =SUM(E12:E17)-(J9+J12+J21+J22+J23+J24) -> 1172.89 | O13: =P12+0.01 -> 682.51 | P13: 1025.81 | Q13: 24.66 | S13: FALSE | U13: TRUE | V13: =IF($U$12=TRUE,E13,IF($U$12=FALSE,0)) -> 0 | Y13: TRUE | Z13: 0 | AB13: TRUE | AC13: 0
B14: 1/3 CF S/FÉRIAS GOZADAS | E14: =DEMONSTRATIVO!P26+DEMONSTRATIVO!P28 -> 322.22 | F14: IRRF S/ 13° SALÁRIO | H14: =VLOOKUP($J$33,$O$22:$Q$26,3) -> 0 | I14: =VLOOKUP($J$33,$O$22:$Q$26,3) -> 0 | J14: =J33*I14-U33 -> 0 | O14: =P13+0.01 -> 1025.82 | P14: 0 | Q14: 0 | U14: TRUE | V14: =IF(U14=TRUE,E14,IF(U14=FALSE,0)) -> 322.22 | Y14: TRUE | Z14: 322.22 | AB14: TRUE | AC14: 0 | AD14: =IF($AB$14=TRUE,$E$14,IF($AB$14=FALSE,0)) -> 322.22 | AG14: 2 | AH14: =AL9 -> FALSE | AK14: 2016-02-29
B15: ABONO PEC. FÉRIAS | D15: =DEMONSTRATIVO!O34 -> 0 | E15: =DEMONSTRATIVO!P34 -> 0 | F15: FALTAS | I15: 0 | J15: =D5/30*I15 -> 0 | U15: FALSE | V15: =IF(U15=TRUE,E15,IF(U15=FALSE,0)) -> 0 | Y15: FALSE | Z15: 0 | AB15: FALSE | AC15: 0 | AD15: =IF($AB$15=TRUE,$E$15,IF($AB$15=FALSE,0)) -> 0 | AG15: 3 | AH15: 31 | AK15: 2017-02-28
B16: ABONO PEC. FÉRIAS VARIÁVEL | E16: =DEMONSTRATIVO!P36 -> 0 | F16: ADIANT. 1ª PARC. 13º SALARIO | O16: PERCENTUAL DO FGTS | R16: 0.08
B17: 1/3 CF S/AB.PECUNIÁRIO | E17: =DEMONSTRATIVO!P35+DEMONSTRATIVO!P37 -> 0 | F17: VALE-TRANSPORTE | J17: =IF(W30>V30,V30,IF(W30<=V30,W30)) -> 0 | R17: 0.06 | U17: FALSE | V17: =IF(U17=TRUE,E17,IF(U17=FALSE,0)) -> 0 | Y17: FALSE | Z17: =IF(Y17=TRUE,E17,IF(Y17=FALSE,0)) -> 0 | AB17: FALSE | AC17: 0 | AD17: =IF($AB$17=TRUE,$E$17,IF($AB$17=FALSE,0)) -> 0 | AG17: 4 | AH17: 30 | AK17: 2018-02-28
B18: 1ª PARCELA 13° SALÁRIO | E18: =DADOS!F23 -> 0 | F18: CONTRIBUIÇÃO SINDICAL | J18: =IF(U2=1,0,IF(U2=2,Y32,IF(U2=3,0))) ->  | R18: 1/30 AVOS | U18: FALSE | V18: =IF(U18=TRUE,E18,IF(U18=FALSE,0)) -> 0 | Y18: TRUE | AA18: =IF($Y$18=TRUE,$E$18,IF($Y$18=FALSE,0)) -> 0 | AB18: FALSE | AC18: =IF(AB18=TRUE,E18,IF(AB18=FALSE,0)) -> 0 | AG18: 5 | AH18: 31 | AK18: 2019-02-28
B19: 13° SALÁRIO | F19: CONTRIB. ASSIST/CONFEDERATIVA | J19: =IF(Y30=0,0,IF(Y30>0,Y30*R19)) -> 0 | R19: 0.02 | U19: TRUE | X19: =IF(U19=TRUE,E19,IF(U19=FALSE,0)) -> 0 | Y19: FALSE | AA19: =IF($Y$19=TRUE,$E$19,IF($Y$19=FALSE,0)) -> 0 | AB19: TRUE | AC19: 0 | AE19: =IF($AB$19=TRUE,$E$19,IF($AB$19=FALSE,0)) -> 0 | AG19: 6 | AH19: 30 | AK19: 2020-02-29
F20: PENSÃO ALIMENTICIA (salário) | J20: =IF(U2=1,0,IF(U2=2,T32,IF(U2=3,0))) -> 0 | U20: FALSE | V20: =IF(U20=TRUE,E20,IF(U20=FALSE,0)) -> 0 | Y20: FALSE | AB20: FALSE
F21: =IF(DADOS!$A$29=0," ",IF(DADOS!$A$29>0,DADOS!$A$29)) ->  | J21: =DEMONSTRATIVO!P44 -> 0 | O21: TABELA DO IRRF | R21: DEDUÇÃO | U21: FALSE | V21: 0 | Y21: FALSE | AB21: FALSE
F22: =IF(DADOS!$A$30=0," ",IF(DADOS!$A$30>0,DADOS!$A$30)) ->  | J22: =DEMONSTRATIVO!P45 -> 0 | O22: 0 | P22: 1787.77 | Q22: 0 | R22: 0 | U22: FALSE | V22: 0 | Y22: FALSE | AB22: FALSE
F23: =IF(DADOS!$A$31=0," ",IF(DADOS!$A$31>0,DADOS!$A$31)) ->  | J23: =DEMONSTRATIVO!P46 -> 0 | O23: =P22+0.01 -> 1787.78 | P23: 2679.29 | Q23: 0.075 | R23: 134.08 | U23: FALSE | V23: 0 | Y23: FALSE | AB23: FALSE
F24: =DADOS!$A$32 -> Pensão Alimentícia | H24: =DADOS!C32 -> Férias | J24: =DEMONSTRATIVO!P47 -> 0 | O24: =P23+0.01 -> 2679.3 | P24: 3572.43 | Q24: 0.15 | R24: =P23*(Q24-Q23)+R23 -> 335.03 | U24: FALSE | V24: 0 | Y24: FALSE | AB24: FALSE
O25: =P24+0.01 -> 3572.44 | P25: 4463.8 | Q25: 0.225 | R25: =P24*(Q25-Q24)+R24 -> 602.96 | U25: FALSE | V25: 0 | Y25: FALSE | AB25: FALSE | AG25: 7 | AH25: 31
O26: =P25+0.01 -> 4463.81 | P26: 1000000000 | Q26: 0.275 | R26: =P25*(Q26-Q25)+R25 -> 826.15 | U26: FALSE | V26: 0 | Y26: FALSE | AB26: FALSE | AG26: 8 | AH26: 31
O27: DEDUÇÃO POR DEPENDENTE | R27: 179.71 | U27: TRUE | Y27: FALSE | AB27: FALSE | AG27: 9 | AH27: 30
B28: SALÁRIO-FAMILIA | D28: =IF(U2=1,0,IF(U2=2,O5,IF(U2=3,0))) -> 1 | E28: =IF(Z35=FALSE,0,IF(Z35<>"FALSO",Z34/AG10*AF4)) -> 0 | O28: =D30*R27 -> 359.42 | U28: descontos | V28: =J15 -> 0 | Z28: =J15 -> 0 | AA28: =J16 -> 0 | AB28: INSS DESC. | AC28: =-J8-J15 -> -3 | AE28: =-J10 -> 0 | AG28: 10 | AH28: 31 | AK28: 2021-02-28
B29: TOTAL BRUTO | E29: =SUM(E8:E28) -> 1322.22 | F29: TOTAL DESCONTOS | J29: =SUM(J8:J27) -> 1291.89 | K29: PARA LIMPAR VALORES DAS CÉLULAS, USE SEMPRE A TECLA "ZERO" OU "DELETE". NÃO USAR A TECLA "BARRA DE ESPAÇO" POIS APARECERÁ O SEGUINTE ERRO #VALOR! | O29: LIMITE DE ISENÇÃO DO IRRF | R29: 10 | T29: =SUM(T8:T28) -> 33.33 | V29: =SUM(V8:V27)-V28 -> 1322.22 | X29: =SUM(X19:X28) -> 0 | Z29: =SUM(Z8:Z27)-Z28 -> 1322.22 | AA29: =SUM(AA18:AA19)-AA28 -> 0 | AC29: =SUM(AC8:AC28) -> 30.33 | AD29: =SUM(AD12:AD28) -> 1288.89 | AE29: =SUM(AE19:AE28) -> 0 | AG29: 11 | AH29: 30 | AK29: 2018-02-28
B30: Nº DEP. IRRF | D30: =R5 -> 2 | E30: LIQUIDO A RECEBER | J30: =E29-J29 -> 30.33 | O30: Limite de isenção não aplicável ao 13° Salário | U30: FALSE | V30: =IF(U30=TRUE,R33,IF(U30=FALSE,0)) -> 0 | W30: =IF(V30<=0,0,IF(V30>0,(T29-J15)*R17)) -> 0 | X30: FALSE | Y30: =IF(X30=TRUE,V29,IF(X30=FALSE,0)) -> 0 | AB30: BC-SALARIO | AC30: =AC29-O28 -> -329.09 | AE30: =AE29-O28 -> -359.42 | AG30: 12 | AH30: 31 | AK30: 2022-02-28
B31: =fextenso(J30,1/3,"real","reais") -> trinta reais e trinta e três centavos
B32: B.CÁL.FGTS-SAL.E FÉRIAS | C32: FGTS SAL. E FÉRIAS NO MÊS | E32: B.CÁL.FGTS 13º SALÁRIO | F32: FGTS 13ºSALÁRIO | G32: B.CÁLC.IRRF SALÁRIO | J32: B.CÁLC.IRRF -13° SALÁRIO | O32: Pensão Alimenticia R$ | R32: =TB!G18 -> 0 | S32: FALSE | T32: =IF(S32=TRUE,R32,IF(S32=FALSE,0)) -> 0 | U32: =VLOOKUP(I11,$Q$22:$R$26,2) -> 0 | V32: IRRF-SAL. | X32: FALSE | Y32: =IF($X$32=TRUE,$D$5/30,IF($X$32=FALSE," ")) ->  | AB32: BC-FÉRIAS | AK32: 29/02/2023
B33: =IF(Z29<=0,0,IF(Z29>0,Z29)) -> 1322.22 | C33: =B33*R16 -> 105.78 | E33: =AA29 -> 0 | F33: =E33*R16 -> 0 | G33: =IF(AC29-O28-R32<=0,0,IF(AC29-O28-R32>0,AC29-O28-R32)) -> 0 | J33: =IF(AE29-O28<=0,0,IF(AE29-O28>0,AE29-O28)) -> 0 | O33: COMPRA VALE TRANSPORTE R$ | R33: 0 | U33: =VLOOKUP(I14,$Q$22:$R$26,2) -> 0 | V33: IRRF-13° SAL | Z33: S.FAM | AB33: BC-13° SALARIO | AK33: 2019-02-28
B34: B.CÁL.INSS-SAL.E FÉRIAS | E34: B.CÁL.INSS - 13° SALÁRIO | G34: B.CÁLC.IRRF ADIANT. SALÁRIO | O34: Vale Transporte descontado R$ | R34: =J17 -> 0 | Z34: =VLOOKUP($V$29+W29,$O$12:$Q$14,3)*$D$28 -> 0 | AK34: 2020-02-28
B35: =IF(V29>=P9,P9,IF(V29<P9,V29)) -> 1322.22 | E35: =IF(X29>=P9,P9,IF(X29<P9,X29)) -> 0 | G35: R$ | O35: TOTAL DE DESPESAS DA EMPRESA | R35: =IF(R33>=J17,R33-J17,IF(R33<J17,)) -> 0 | Z35: =IF(AF3=AG11,Z34,IF(AF3<AG11,Z34/AG11*AF3)) -> 0 | AK35: 2021-02-28
B36: LOCAL | G36: DATA | AK36: 29/02/2022
B38: ASSINATURA
E39: =E1 -> ANGELO | O39: =TB!B34 -> (FÉRIAS JANEIRO 2014) - ATUALIZADO 03/2014 - V14 (19/03/2013)

Sheet HOLLERITH (2)
B1: NOME FUNCIONÁRIO | E1: =VLOOKUP(DADOS!G3,FUNC!4:7209,2) -> ANGELO
B2: MÊS/ANO | C2: ADMISSÃO | E2: NOME DA EMPRESA/DONO DA RESIDÊNCIA | U2: 2 | AF2: =IF(AG2+AH2=0,0) -> FALSE | AG2: =IF($AG$4=$AG$6,0,IF($AG$4<>$AG$6,1)) -> 1 | AH2: =IF($AH$4=$AH$6,0,IF($AH$4<>$AH$6,1)) -> 1
B3: ='HOLLERITH (1)'!B3+31 -> 2014-05-03 | C3: ='HOLLERITH (1)'!C3:D3 -> 2010-02-01 | E3: =VLOOKUP(DADOS!G4,EMP!3:4500,2) -> Disk Automoveis Ltda | V3: T.MAXIMO | AD3: DIAS SFAMILIA | AF3: =IF(AF2=0,AG11-AF64,IF(AF2>0,AG11)) -> 31
B4: CBO | C4: ='HOLLERITH (1)'!C4:D4 -> 4115-10 | E4: CTPS | F4: =RECIBO!H12 -> 55563 | G4: SÉRIE | H4: =RECIBO!Y12 -> 00038/sp | AD4: dias do salario | AF4: =IF(AF2=0,30-AF6+1,IF(AF2>0,30)) -> 30 | AG4: =MONTH(B3) -> 5 | AH4: =YEAR(B3) -> 2014 | AK4: 2007-02-28
B5: SALÁRIO-FIXO | D5: =RECIBO!G27 -> 1000 | F5: FUNÇÃO | G5: =VLOOKUP(DADOS!G3,FUNC!4:7211,85) -> contador | K5: SALÁRIO-FAMILIA | O5: =VLOOKUP(DADOS!$G$3,FUNC!A3:IG169,4) -> 1 | P5: Nº DEP. IRRF | R5: =RECIBO!H44 -> 2 | AD5: DIAS DE SALÁRIO (-) DIAS FÉRIAS | AF5: =(AF4-D12) -> 29 | AK5: 2008-02-29
B6: CÁLCULO DO HOLLERITH DO FUNCIONÁRIO | K6: PROVENTOS | O6: TABELA DO INSS | R6: Usando o botão "limpar valores digitados" você evita o erro #VALOR! Dentro do hollerith. | V6: =P9*Q9 -> 482.93 | AD6: admissão | AF6: =DAY(C3) -> 1 | AG6: =MONTH(C3) -> 2 | AH6: =YEAR(C3) -> 2010 | AK6: 2009-02-28
B7: PROVENTOS | E7: R$ | F7: DESCONTOS | J7: R$ | K7: INSS | L7: FGTS | M7: IRRF | N7: VT | O7: 0 | P7: 1317.07 | Q7: 0.08 | S7: VT | T7: VT | U7: INSS | V7: INSS/sal | W7: INSS/FÉRIAS | X7: INSS/13° SAL | Y7: FGTS | Z7: FGTS(SAL.FERIAS) | AA7: FGTS(13º SAL | AB7: IRRF | AC7: IRRF S/SAL | AD7: IRRF S/FÉRIAS | AE7: IRRF S/13° SAL | AK7: 2010-02-28
B8: SALÁRIO MENSAL | D8: =IF(AF4=31,0,IF(AF4<>31,AF4-D12)) -> 29 | E8: =IF(U2=2,D5/30*D8,IF(U2=1,0,IF(U2=3,0))) -> 966.67 | F8: INSS S/ SALÁRIO | H8: =VLOOKUP($V$29,$O$7:$Q$9,3) -> 0.08 | I8: =IF(V29+W29=0,0,IF(V29+W29>0,H8)) -> 0.08 | J8: =IF($V$29>$P$9,$P$9*$I$8,IF($V$29<$P$9,$V$29*$I$8))-J9 -> 76.89 | O8: =P7+0.01 -> 1317.08 | P8: 2195.12 | Q8: 0.09 | S8: TRUE | T8: =IF(S8=TRUE,E8,IF(S8=FALSE,0)) -> 966.67 | U8: TRUE | V8: =IF(U8=TRUE,E8,IF(U8=FALSE,0)) -> 966.67 | Y8: TRUE | Z8: =IF(Y8=TRUE,E8,IF(Y8=FALSE,0)) -> 966.67 | AB8: TRUE | AC8: =IF(AB8=TRUE,E8,IF(AB8=FALSE,0)) -> 966.67 | AK8: 2011-02-28
F9: INSS S/ FÉRIAS | J9: =DEMONSTRATIVO!V42 -> 4 | O9: =P8+0.01 -> 2195.13 | P9: 4390.24 | Q9: 0.11 | S9: FALSE | T9: =IF(S9=TRUE,E9,IF(S9=FALSE,0)) -> 0 | U9: TRUE | V9: =IF(U9=TRUE,E9,IF(U9=FALSE,0)) -> 0 | Y9: TRUE | Z9: 0 | AB9: TRUE | AC9: =IF(AB9=TRUE,E9,IF(AB9=FALSE,0)) -> 0 | AF9: =MONTH(B3)&"/"&YEAR(B3) -> 5/2014 | AK9: 2012-02-29 | AL9: =IF(AF9="2/2007",28,IF(AF9="2/2008",29,IF(AF9="2/2009",28,IF(AF9="2/2010",28,IF(AF9="2/2011",28,IF(AF9="2/2012",29,AM9)))))) -> FALSE | AM9: =IF(AF9="2/2013",28,IF(AF9="2/2014",28,IF(AF9="2/2015",28,IF(AF9="2/2016",29,IF(AF9="2/2017",28,IF(AF9="2/2018",28,IF(AF9="2/2019",28,AN9))))))) -> FALSE | AN9: =IF(AF9="2/2020",29,IF(AF9="2/2021",28,IF(AF9="2/2022",28,IF(AF9="2/2023",28,IF(AF9="2/2024",29))))) -> FALSE
F10: INSS S/ 13° SALÁRIO | H10: =VLOOKUP($X$29,$O$7:$Q$9,3) -> 0.08 | I10: =IF(X29=0,0,IF(X29>0,H10)) -> 0 | J10: =IF($X$29>$P$9,$P$9*$I$10,IF($X$29<$P$9,$X$29*$I$10)) -> 0 | S10: FALSE | T10: =IF(S10=TRUE,E10,IF(S10=FALSE,0)) -> 0 | U10: TRUE | V10: =IF(U10=TRUE,E10,IF(U10=FALSE,0)) -> 0 | Y10: TRUE | Z10: 0 | AB10: TRUE | AC10: =IF(AB10=TRUE,E10,IF(AB10=FALSE,0)) -> 0 | AG10: 30 | AK10: 2013-02-28
F11: IRRF S/ SALÁRIO | H11: =VLOOKUP($G$33,$O$22:$Q$26,3) -> 0 | I11: =VLOOKUP($G$33,$O$22:$Q$26,3) -> 0 | J11: =IF(G33*I11-U32<R29,0,IF(G33*I11-U32>=R29,G33*I11-U32)) -> 0 | O11: TABELA DO SALÁRIIO-FAMÍLIA | T11: =IF(S11=TRUE,E11,IF(S11=FALSE,0)) -> 0 | U11: TRUE | V11: =IF(U11=TRUE,E11,IF(U11=FALSE,0)) -> 0 | Y11: TRUE | Z11: 0 | AB11: FALSE | AC11: =IF(AB11=TRUE,E11,IF(AB11=FALSE,0)) -> 0 | AG11: =VLOOKUP(AG4,AG12:AH38,2) -> 31 | AK11: 2014-02-28
B12: FÉRIAS GOZADAS | D12: =DEMONSTRATIVO!T25 -> 1 | E12: =DEMONSTRATIVO!V25 -> 33.33 | F12: IRRF S/ FÉRIAS | J12: =DEMONSTRATIVO!V43 -> 0 | O12: 0 | P12: 682.5 | Q12: 35 | S12: FALSE | U12: TRUE | V12: =IF($U$12=TRUE,E12,IF($U$12=FALSE,0)) -> 33.33 | Y12: TRUE | Z12: 33.33 | AB12: TRUE | AC12: 0 | AD12: =IF($AB$12=TRUE,$E$12,IF($AB$12=FALSE,0)) -> 33.33 | AG12: 1 | AH12: 31 | AK12: 2015-02-28
B13: FÉRIAS GOZADAS VARIÁVEL | E13: =DEMONSTRATIVO!V27 -> 0 | F13: ADIANTAMENTO DE FÉRIAS | J13: =SUM(E12:E17)-(J9+J12+J21+J22+J23+J24) -> 40.44 | O13: =P12+0.01 -> 682.51 | P13: 1025.81 | Q13: 24.66 | S13: FALSE | U13: TRUE | V13: =IF($U$12=TRUE,E13,IF($U$12=FALSE,0)) -> 0 | Y13: TRUE | Z13: 0 | AB13: TRUE
B14: 1/3 CF S/FÉRIAS GOZADAS | E14: =DEMONSTRATIVO!V26+DEMONSTRATIVO!V28 -> 11.11 | F14: IRRF S/ 13° SALÁRIO | H14: =VLOOKUP($J$33,$O$22:$Q$26,3) -> 0 | I14: =VLOOKUP($J$33,$O$22:$Q$26,3) -> 0 | J14: =J33*I14-U33 -> 0 | O14: =P13+0.01 -> 1025.82 | P14: 0 | Q14: 0 | U14: TRUE | V14: =IF(U14=TRUE,E14,IF(U14=FALSE,0)) -> 11.11 | Y14: TRUE | Z14: 11.11 | AB14: TRUE | AC14: 0 | AD14: =IF($AB$14=TRUE,$E$14,IF($AB$14=FALSE,0)) -> 11.11 | AG14: 2 | AH14: =AL9 -> FALSE | AK14: 2016-02-29
B15: ABONO PEC. FÉRIAS | D15: =DEMONSTRATIVO!T34 -> 0 | E15: =DEMONSTRATIVO!V34 -> 0 | F15: FALTAS | I15: 0 | J15: =D5/30*I15 -> 0 | U15: FALSE | V15: =IF(U15=TRUE,E15,IF(U15=FALSE,0)) -> 0 | Y15: FALSE | Z15: 0 | AB15: FALSE | AC15: 0 | AD15: =IF($AB$15=TRUE,$E$15,IF($AB$15=FALSE,0)) -> 0 | AG15: 3 | AH15: 31 | AK15: 2017-02-28
B16: ABONO PEC. FÉRIAS VARIÁVEL | E16: =DEMONSTRATIVO!V36 -> 0 | F16: ADIANT. 1ª PARC. 13º SALARIO | O16: PERCENTUAL DO FGTS | R16: 0.08
B17: 1/3 CF S/AB.PECUNIÁRIO | E17: =DEMONSTRATIVO!V35+DEMONSTRATIVO!V37 -> 0 | F17: VALE-TRANSPORTE | J17: =IF(W30>V30,V30,IF(W30<=V30,W30)) -> 0 | R17: 0.06 | U17: FALSE | V17: =IF(U17=TRUE,E17,IF(U17=FALSE,0)) -> 0 | Y17: TRUE | Z17: =IF(Y17=TRUE,E17,IF(Y17=FALSE,0)) -> 0 | AB17: FALSE | AC17: 0 | AD17: =IF($AB$17=TRUE,$E$17,IF($AB$17=FALSE,0)) -> 0 | AG17: 4 | AH17: 30 | AK17: 2018-02-28
B18: 1ª PARCELA 13° SALÁRIO | F18: CONTRIBUIÇÃO SINDICAL | J18: =IF(U2=1,0,IF(U2=2,Y32,IF(U2=3,0))) ->  | R18: 1/30 AVOS | U18: FALSE | V18: =IF(U18=TRUE,E18,IF(U18=FALSE,0)) -> 0 | Y18: TRUE | AA18: =IF($Y$18=TRUE,$E$18,IF($Y$18=FALSE,0)) -> 0 | AB18: FALSE | AC18: =IF(AB18=TRUE,E18,IF(AB18=FALSE,0)) -> 0 | AG18: 5 | AH18: 31 | AK18: 2019-02-28
B19: 13° SALÁRIO | F19: CONTRIB. ASSIST/CONFEDERATIVA | J19: =IF(Y30=0,0,IF(Y30>0,Y30*R19)) -> 0 | R19: 0.02 | U19: TRUE | X19: =IF(U19=TRUE,E19,IF(U19=FALSE,0)) -> 0 | Y19: TRUE | AA19: =IF($Y$19=TRUE,$E$19,IF($Y$19=FALSE,0)) -> 0 | AB19: TRUE | AC19: 0 | AE19: =IF($AB$19=TRUE,$E$19,IF($AB$19=FALSE,0)) -> 0 | AG19: 6 | AH19: 30 | AK19: 2020-02-29
F20: PENSÃO ALIMENTICIA (salário) | J20: =IF(U2=1,0,IF(U2=2,T32,IF(U2=3,0))) -> 0 | U20: TRUE | V20: =IF(U20=TRUE,E20,IF(U20=FALSE,0)) -> 0 | Y20: TRUE | AB20: TRUE
F21: =IF(DADOS!$A$29=0," ",IF(DADOS!$A$29>0,DADOS!$A$29)) ->  | J21: =DEMONSTRATIVO!V44 -> 0 | O21: TABELA DO IRRF | R21: DEDUÇÃO | U21: TRUE | V21: 0 | Y21: TRUE | AB21: TRUE
F22: =IF(DADOS!$A$30=0," ",IF(DADOS!$A$30>0,DADOS!$A$30)) ->  | J22: =DEMONSTRATIVO!V45 -> 0 | O22: 0 | P22: 1787.77 | Q22: 0 | R22: 0 | U22: TRUE | V22: 0 | Y22: TRUE | AB22: TRUE
F23: =IF(DADOS!$A$31=0," ",IF(DADOS!$A$31>0,DADOS!$A$31)) ->  | J23: =DEMONSTRATIVO!V46 -> 0 | O23: =P22+0.01 -> 1787.78 | P23: 2679.29 | Q23: 0.075 | R23: 134.08 | U23: TRUE | V23: 0 | Y23: TRUE | AB23: TRUE
F24: =DADOS!$A$32 -> Pensão Alimentícia | H24: =DADOS!C32 -> Férias | J24: =DEMONSTRATIVO!V47 -> 0 | O24: =P23+0.01 -> 2679.3 | P24: 3572.43 | Q24: 0.15 | R24: =P23*(Q24-Q23)+R23 -> 335.03 | U24: TRUE | V24: 0 | Y24: TRUE | AB24: TRUE
O25: =P24+0.01 -> 3572.44 | P25: 4463.8 | Q25: 0.225 | R25: =P24*(Q25-Q24)+R24 -> 602.96 | U25: TRUE | V25: 0 | Y25: TRUE | AB25: TRUE | AG25: 7 | AH25: 31
O26: =P25+0.01 -> 4463.81 | P26: 1000000000 | Q26: 0.275 | R26: =P25*(Q26-Q25)+R25 -> 826.15 | U26: TRUE | V26: 0 | Y26: TRUE | AB26: TRUE | AG26: 8 | AH26: 31
O27: DEDUÇÃO POR DEPENDENTE | R27: 179.71 | U27: TRUE | Y27: FALSE | AB27: TRUE | AG27: 9 | AH27: 30
B28: SALÁRIO-FAMILIA | D28: =IF(U2=1,0,IF(U2=2,O5,IF(U2=3,0))) -> 1 | E28: =IF(Z35=FALSE,0,IF(Z35<>"FALSO",Z34/AG10*AF4)) -> 24.66 | O28: =D30*R27 -> 359.42 | U28: descontos | V28: =J15 -> 0 | Z28: =J15 -> 0 | AA28: =J16 -> 0 | AB28: INSS DESC. | AC28: =-J8-J15 -> -76.89 | AE28: =-J10 -> 0 | AG28: 10 | AH28: 31 | AK28: 2021-02-28
B29: TOTAL BRUTO | E29: =SUM(E8:E28) -> 1035.77 | F29: TOTAL DESCONTOS | J29: =SUM(J8:J27) -> 121.33 | K29: PARA LIMPAR VALORES DAS CÉLULAS, USE SEMPRE A TECLA "ZERO" OU "DELETE". NÃO USAR A TECLA "BARRA DE ESPAÇO" POIS APARECERÁ O SEGUINTE ERRO #VALOR! | O29: LIMITE DE ISENÇÃO DO IRRF | R29: 10 | T29: =SUM(T8:T28) -> 966.67 | V29: =SUM(V8:V27)-V28 -> 1011.11 | X29: =SUM(X19:X28) -> 0 | Z29: =SUM(Z8:Z27)-Z28 -> 1011.11 | AA29: =SUM(AA18:AA19)-AA28 -> 0 | AC29: =SUM(AC8:AC28) -> 889.78 | AD29: =SUM(AD12:AD28) -> 44.44 | AE29: =SUM(AE19:AE28) -> 0 | AG29: 11 | AH29: 30 | AK29: 2018-02-28
B30: Nº DEP. IRRF | D30: =R5 -> 2 | E30: LIQUIDO A RECEBER | J30: =E29-J29 -> 914.44 | O30: Limite de isenção não aplicável ao 13° Salário | U30: FALSE | V30: =IF(U30=TRUE,R33,IF(U30=FALSE,0)) -> 0 | W30: =IF(V30<=0,0,IF(V30>0,(T29-J15)*R17)) -> 0 | X30: FALSE | Y30: =IF(X30=TRUE,V29,IF(X30=FALSE,0)) -> 0 | AB30: BC-SALARIO | AC30: =AC29-O28 -> 530.36 | AE30: =AE29-O28 -> -359.42 | AG30: 12 | AH30: 31 | AK30: 2022-02-28
B31: =fextenso(J30,1/3,"real","reais") -> novecentos e quatorze reais e quarenta e quatro centavos
B32: B.CÁL.FGTS-SAL.E FÉRIAS | C32: FGTS SAL. E FÉRIAS NO MÊS | E32: B.CÁL.FGTS 13º SALÁRIO | F32: FGTS 13ºSALÁRIO | G32: B.CÁLC.IRRF SALÁRIO | J32: B.CÁLC.IRRF -13° SALÁRIO | O32: Pensão Alimenticia R$ | R32: =TB!G18 -> 0 | S32: FALSE | T32: =IF(S32=TRUE,R32,IF(S32=FALSE,0)) -> 0 | U32: =VLOOKUP(I11,$Q$22:$R$26,2) -> 0 | V32: IRRF-SAL. | X32: FALSE | Y32: =IF($X$32=TRUE,$D$5/30,IF($X$32=FALSE," ")) ->  | AB32: BC-FÉRIAS | AK32: 29/02/2023
B33: =IF(Z29<=0,0,IF(Z29>0,Z29)) -> 1011.11 | C33: =B33*R16 -> 80.89 | E33: =AA29 -> 0 | F33: =E33*R16 -> 0 | G33: =IF(AC29-O28-R32<=0,0,IF(AC29-O28-R32>0,AC29-O28-R32)) -> 530.36 | J33: =IF(AE29-O28<=0,0,IF(AE29-O28>0,AE29-O28)) -> 0 | O33: COMPRA VALE TRANSPORTE R$ | R33: 0 | U33: =VLOOKUP(I14,$Q$22:$R$26,2) -> 0 | V33: IRRF-13° SAL | Z33: S.FAM | AB33: BC-13° SALARIO | AK33: 2019-02-28
B34: B.CÁL.INSS-SAL.E FÉRIAS | E34: B.CÁL.INSS - 13° SALÁRIO | G34: B.CÁLC.IRRF ADIANT. SALÁRIO | O34: Vale Transporte descontado R$ | R34: =J17 -> 0 | Z34: =VLOOKUP($V$29+W29,$O$12:$Q$14,3)*$D$28 -> 24.66 | AK34: 2020-02-28
B35: =IF(V29>=P9,P9,IF(V29<P9,V29)) -> 1011.11 | E35: =IF(X29>=P9,P9,IF(X29<P9,X29)) -> 0 | G35: R$ | O35: TOTAL DE DESPESAS DA EMPRESA | R35: =IF(R33>=J17,R33-J17,IF(R33<J17,)) -> 0 | Z35: =IF(AF3=AG11,Z34,IF(AF3<AG11,Z34/AG11*AF3)) -> 24.66 | AK35: 2021-02-28
B36: LOCAL | G36: DATA | AK36: 29/02/2022
B38: ASSINATURA
E39: =E1 -> ANGELO | O39: =TB!B34 -> (FÉRIAS JANEIRO 2014) - ATUALIZADO 03/2014 - V14 (19/03/2013)
